{"text_format":"1","workbook":"xlsx","n_sheets":3,"sheets":["OVERAL SCORE","Buscar","Base"],"not_rendered":{"charts":0,"images":3,"macros":1,"external_links":0,"defined_names":6,"comments":0,"pivot_tables":0},"unopened":[],"bounds":{"document_bytes":16777216,"sheet_cells":100000,"rows_first":2000,"rows_last":500,"rows_between":2000,"halvings":0,"cell_chars":16384,"cell_head_chars":4096},"cells_cut":0,"cells_raw":0,"read":"whole","date_system":"1900"}

{"sheet":"OVERAL SCORE","index":0,"n_rows":8,"n_cols":22,"rows_kept":8,"cut":false,"hidden":true,"merged":[]}
[]
[]
[]
[]
[]
[]
[]
[null,null,null,null,null,null,null,null,null,null,null,null,null,null,null,null,null,null,null,null,null,"CILCE"]

{"sheet":"Buscar","index":1,"n_rows":18,"n_cols":7,"rows_kept":18,"cut":false,"hidden":false,"merged":[[0,1,2,8]]}
[null,"PRUEBAS DE CARACTERIZACIÓN DOCENTES Y ADMINISTRATIVOS\nUNIVERSIDAD SANTO TOMÁS SECCIONAL TUNJA\n2022-2"]
[]
[]
[null,null,null,1001]
[]
[null,null,"ESCRIBE TU CC"]
[]
[]
[]
[null,null,"NOMBRE COMPLETO",{"$f":"_xlfn.IFNA(VLOOKUP(D6,Base!A:J,2,0),\"-\")","v":"-"}]
[]
[null,null,"CARGO",{"$f":"_xlfn.IFNA(VLOOKUP(D6,Base!A:J,3,0),\"-\")","v":"-"},null,"RESULTADO",{"$f":"_xlfn.IFNA(VLOOKUP(D6,Base!A:J,7,0),\"-\")","v":"-"}]
[]
[null,null,"ÁREA",{"$f":"_xlfn.IFNA(VLOOKUP(D6,Base!A:J,4,0),\"-\")","v":"-"},null,"NIVEL ACTUAL",{"$f":"_xlfn.IFNA(VLOOKUP(D6,Base!A:J,8,0),\"-\")","v":"-"}]
[]
[null,null,"CITACIÓN",{"$f":"_xlfn.IFNA(VLOOKUP(D6,Base!A:J,5,0),\"-\")","v":"-"},null,"AVANCE",{"$f":"_xlfn.IFNA(VLOOKUP(D6,Base!A:J,9,0),\"-\")","v":"-"}]
[]
[null,null,"PRUEBA ANTERIOR",{"$f":"_xlfn.IFNA(VLOOKUP(D6,Base!A:J,6,0),\"-\")","v":"-"},null,"CERT. INTERNAL.",{"$f":"_xlfn.IFNA(VLOOKUP(D6,Base!A:J,10,0),\"-\")","v":"-"}]

{"sheet":"Base","index":2,"n_rows":568,"n_cols":10,"rows_kept":568,"cut":false,"hidden":true,"merged":[]}
["ID","NOMBRE COMPLETO","CARGO","ÁREA","CITACIÓN","1ST TEST","SCORE","2ND TEST","\"IMPROVEMENT\"","CERTIFICACIÓN"]
[33376210,"YENIFER MARCELA AVENDANO BERNAL","DOCENTE","FACULTAD CULTURA FIS DEPO RECR","OK","A2",33,"A2",{"$f":"+IF(F2=\"NP\",\"NA\",IF(F2=H2,\"SAME LEVEL\",0))","v":"SAME LEVEL"},"NA"]
[40040157,"LYDA FABIOLA VALLEJO CASTILLO","DOCENTE","FACULTAD CULTURA FIS DEPO RECR","OK","A2",20,"A1","LEVEL DOWN","NA"]
[40042802,"YOLIMA RAMIREZ PERALTA","AUXILIAR","FACULTAD CULTURA FIS DEPO RECR","OK","NP",21,"A1",{"$f":"+IF(F4=\"NP\",\"NA\",IF(F4=H4,\"SAME LEVEL\",0))","v":"NA"},"NA"]
[79943045,"FERNANDO ALBERTO BOHORQUEZ CAMPOS","DOCENTE","FACULTAD CULTURA FIS DEPO RECR","OK","B1",63,"B1","SAME LEVEL","Certificado B2 - APTIS 2021"]
[79975067,"OSCAR EDUARDO MUNOZ PULIDO","DECANO (A)","FACULTAD CULTURA FIS DEPO RECR","OK","NP","NP","NP","NA","NA"]
[80726871,"WILLIAM LEONARDO OCHOA MORENO","DOCENTE","FACULTAD CULTURA FIS DEPO RECR","OK","A1",20,"A1","SAME LEVEL","NA"]
[91495625,"HAROLD RODRIGO ORTEGA MOGOLLON","DOCENTE","FACULTAD CULTURA FIS DEPO RECR","OK","NP",49,"A2+","NA","NA"]
[91532816,"GUSTAVO ANDRES LARA OVIEDO","DOCENTE","FACULTAD CULTURA FIS DEPO RECR","OK","NP",27,"A2","NA","NA"]
[1015419293,"SONIA VIVIANA ANZOLA CRUZ","DOCENTE","FACULTAD CULTURA FIS DEPO RECR","OK","A2",40,"A2","SAME LEVEL","NA"]
[1023932570,"LUIS ANDRES TELLEZ TINJACA","DOCENTE","FACULTAD CULTURA FIS DEPO RECR","OK","A2",37,"A2","SAME LEVEL","NA"]
[1049658790,"MIGUEL ANGEL SILVA CORPUS","PROFESIONAL SOPORTE","FACULTAD CULTURA FIS DEPO RECR","OK","NP",21,"A1","NA","NA"]
[1053326321,"OSCAR LEONARDO PENA ROJAS","DOCENTE","FACULTAD CULTURA FIS DEPO RECR","OK","A2",31,"A2","SAME LEVEL","NA"]
[1054679877,"LEYDY VIVIANA ACOSTA FAJARDO","DOCENTE","FACULTAD CULTURA FIS DEPO RECR","OK","A2",37,"A2","SAME LEVEL","NA"]
[7178288,"NESTOR MANUEL ABRIL ESTUPINAN","DOCENTE","FACULTAD CULTURA FIS DEPO RECR","OK","A2",33,"A2","SAME LEVEL","NA"]
[6766032,"OSCAR AUGUSTO SUAREZ GIL","DOCENTE","FACULTAD CULTURA FIS DEPO RECR","OK","NP",23,"A1","NA","NA"]
[6762891,"PUBLIO SUAREZ SOTOMONTE","DOCENTE","DPTO DE CIENCIAS BASICAS","OK","A1",23,"A1",{"$f":"+IF(F17=\"NP\",\"NA\",IF(F17=H17,\"SAME LEVEL\",0))","v":"SAME LEVEL"},"NA"]
[6763314,"JOSE FRANCISCO LEGUIZAMON ROMERO","DOCENTE","DPTO DE CIENCIAS BASICAS","OK","A2",31,"A2",{"$f":"+IF(F18=\"NP\",\"NA\",IF(F18=H18,\"SAME LEVEL\",0))","v":"SAME LEVEL"},"NA"]
[7180864,"JOSE ALBERTO CARRILLO CHAPARRO","DOCENTE","DPTO DE CIENCIAS BASICAS","OK","A1",17,"A1",{"$f":"+IF(F19=\"NP\",\"NA\",IF(F19=H19,\"SAME LEVEL\",0))","v":"SAME LEVEL"},"NA"]
[7188210,"JULIAN DAVID SEGURA PENA","DOCENTE","DPTO DE CIENCIAS BASICAS","OK","A2",23,"A1","LEVEL DOWN","NA"]
[7363246,"HELVER RINCON MARQUEZ","DOCENTE","DPTO DE CIENCIAS BASICAS","OK","A2",40,"A2",{"$f":"+IF(F21=\"NP\",\"NA\",IF(F21=H21,\"SAME LEVEL\",0))","v":"SAME LEVEL"},"NA"]
[23438690,"NURY YOLANDA SUAREZ AVILA","DOCENTE","DPTO DE CIENCIAS BASICAS","OK","A2",26,"A2","SAME LEVEL","NA"]
[33365892,"ELSA LILIANA GUZMAN RINCON","DOCENTE","DPTO DE CIENCIAS BASICAS","OK","A2",36,"A2","SAME LEVEL","NA"]
[33369048,"MAGDA PATRICIA ROJAS SARMIENTO","DOCENTE","DPTO DE CIENCIAS BASICAS","OK","NP",31,"A2","NA","NA"]
[40025358,"CLAUDIA ROCIO URIBE SUAREZ","DOCENTE","DPTO DE CIENCIAS BASICAS","OK","A1",21,"A1","SAME LEVEL","NA"]
[40040976,"SANDRA BIVIANA GONZALEZ FIAGA","DOCENTE","DPTO DE CIENCIAS BASICAS","OK","A1",20,"A1","SAME LEVEL","NA"]
[40043862,"SULLY SEGURA PENA","DOCENTE","DPTO DE CIENCIAS BASICAS","OK","A1",30,"A2","LEVEL UP","NA"]
[40049430,"LUZ ADRIANA PABON CACHOPE","DOCENTE","DPTO DE CIENCIAS BASICAS","OK","A2",34,"A2",{"$f":"+IF(F28=\"NP\",\"NA\",IF(F28=H28,\"SAME LEVEL\",0))","v":"SAME LEVEL"},"NA"]
[52219858,"ADRIANA MARCELA VALERO POSADA","DOCENTE","DPTO DE CIENCIAS BASICAS","OK","A1",33,"A2","LEVEL UP","NA"]
[74181931,"RODRIGO ALONSO CASTRO NINO","DOCENTE","DPTO DE CIENCIAS BASICAS","OK","A2",44,"A2+","LEVEL UP","NA"]
[74433202,"JOSE VICENTE SAMACA RAMIREZ","DOCENTE","DPTO DE CIENCIAS BASICAS","OK","A1",33,"A2","LEVEL UP","NA"]
[1072655319,"HEIDDY PAOLA QUIROZ GAITAN","DOCENTE","DPTO DE CIENCIAS BASICAS","OK","NP",59,"A2+",{"$f":"+IF(F32=\"NP\",\"NA\",IF(F32=H32,\"SAME LEVEL\",0))","v":"NA"},"NA"]
[1049616358,"LEIDY JOHANA SUAREZ GOMEZ","DOCENTE","DPTO DE CIENCIAS BASICAS","OK","A1",23,"A1",{"$f":"+IF(F33=\"NP\",\"NA\",IF(F33=H33,\"SAME LEVEL\",0))","v":"SAME LEVEL"},"NA"]
[1049618734,"BRIGID HIOMARA PACHECO GARCIA","DIRECTOR (A)","DPTO DE CIENCIAS BASICAS","OK","A1",27,"A2","LEVEL UP","NA"]
[1049618916,"TATHIANA YESENIA COY MONDRAGON","DOCENTE","DPTO DE CIENCIAS BASICAS","OK","A1",36,"A2","LEVEL UP","NA"]
[1049628697,"ERIKA ALEJANDRA SUAREZ DIAZ","DOCENTE","DPTO DE CIENCIAS BASICAS","OK","A2",20,"A1","LEVEL DOWN","NA"]
[1049630934,"FABIAN HERNANDO ANAYA SIERRA","DOCENTE","DPTO DE CIENCIAS BASICAS","OK","A2",33,"A2",{"$f":"+IF(F37=\"NP\",\"NA\",IF(F37=H37,\"SAME LEVEL\",0))","v":"SAME LEVEL"},"NA"]
[1052386426,"JORGE LEONARDO PITA OJEDA","DOCENTE","DPTO DE CIENCIAS BASICAS","OK","A2",43,"A2",{"$f":"+IF(F38=\"NP\",\"NA\",IF(F38=H38,\"SAME LEVEL\",0))","v":"SAME LEVEL"},"NA"]
[1057573883,"JULIAN STEVEN GUTIERREZ SAAVEDRA","DOCENTE","DPTO DE CIENCIAS BASICAS","OK","NP",53,"A2+",{"$f":"+IF(F39=\"NP\",\"NA\",IF(F39=H39,\"SAME LEVEL\",0))","v":"NA"},"NA"]
[40030913,"FRANCY JEANNETH PEREZ ACUNA","AUXILIAR","DPTO DE CIENCIAS BASICAS","OK","A1",19,"A1",{"$f":"+IF(F40=\"NP\",\"NA\",IF(F40=H40,\"SAME LEVEL\",0))","v":"SAME LEVEL"},"NA"]
[46452729,"MARTHA ELIZABETH BENAVIDES ROZO","DOCENTE","DPTO DE CIENCIAS BASICAS","OK","A1",24,"A1",{"$f":"+IF(F41=\"NP\",\"NA\",IF(F41=H41,\"SAME LEVEL\",0))","v":"SAME LEVEL"},"NA"]
[46453485,"EMILSE YAMILE BECERRA GUECHA","DOCENTE","DPTO DE CIENCIAS BASICAS","OK","B1+",27,"A2","LEVEL DOWN","NA"]
[1049611991,"ELIANA MARITZA TULCAN MEJIA","DOCENTE","DPTO DE CIENCIAS BASICAS","OK","A2",51,"A2+","LEVEL UP","NA"]
[40034680,"ZANDRA OMAIRA SILVA FONSECA","DOCENTE","DPTO DE CIENCIAS BASICAS","OK","A2",51,"A2+","LEVEL UP","NA"]
[4280171,"ALFONSO CAMARGO MUNOZ","DOCENTE","DEPARTAMENTO DE HUMANIDADES","OK","A2",29,"A2",{"$f":"+IF(F45=\"NP\",\"NA\",IF(F45=H45,\"SAME LEVEL\",0))","v":"SAME LEVEL"},"NA"]
[7161675,"ANUAR ALUD SORA","DOCENTE","DEPARTAMENTO DE HUMANIDADES","OK","A2",26,"A2",{"$f":"+IF(F46=\"NP\",\"NA\",IF(F46=H46,\"SAME LEVEL\",0))","v":"SAME LEVEL"},"NA"]
[7164361,"JOSE OVIDIO NOCUA ACUNA","DOCENTE","DEPARTAMENTO DE HUMANIDADES","OK","A2",23,"A1","LEVEL DOWN","NA"]
[7176089,"HERNAN JAVIER PINZON MANRIQUE","DOCENTE","DEPARTAMENTO DE HUMANIDADES","OK","A2",51,"A2+","LEVEL UP","NA"]
[7180283,"MILTON ADOLFO BAUTISTA ROA","DOCENTE","DEPARTAMENTO DE HUMANIDADES","OK","A2+",39,"A2","LEVEL DOWN","NA"]
[7228602,"JOSE ALBERTO MEDINA LOZANO","DOCENTE","DEPARTAMENTO DE HUMANIDADES","OK","NP",63,"B1",{"$f":"+IF(F50=\"NP\",\"NA\",IF(F50=H50,\"SAME LEVEL\",0))","v":"NA"},"NA"]
[7314804,"MILTON JAVIER PIRAZAN RODRIGUEZ","DOCENTE","DEPARTAMENTO DE HUMANIDADES","OK","A2+",21,"A1","LEVEL DOWN","NA"]
[40022508,"MYRIAM MARITZA NINO FORERO","DOCENTE","DEPARTAMENTO DE HUMANIDADES","OK","A1",9,"A1",{"$f":"+IF(F52=\"NP\",\"NA\",IF(F52=H52,\"SAME LEVEL\",0))","v":"SAME LEVEL"},"NA"]
[40024522,"ANA HERLINDA VARGAS LEON","AUXILIAR","DEPARTAMENTO DE HUMANIDADES","OK","A1","NP","NP","NA","NA"]
[46382013,"MARIA TERESA GOMEZ RAMIREZ","DOCENTE","DEPARTAMENTO DE HUMANIDADES","OK","A2",40,"A2",{"$f":"+IF(F54=\"NP\",\"NA\",IF(F54=H54,\"SAME LEVEL\",0))","v":"SAME LEVEL"},"NA"]
[46386084,"ANDREA DEL PILAR PEREZ RAIGOSO","DOCENTE","DEPARTAMENTO DE HUMANIDADES","OK","A2+",27,"A2","LEVEL DOWN","NA"]
[46454283,"DIANA DERLY HURTADO PENA","DOCENTE","DEPARTAMENTO DE HUMANIDADES","OK","A2",37,"A2",{"$f":"+IF(F56=\"NP\",\"NA\",IF(F56=H56,\"SAME LEVEL\",0))","v":"SAME LEVEL"},"NA"]
[52717065,"LYDA CONSTANZA PULIDO MUNOZ","DOCENTE","DEPARTAMENTO DE HUMANIDADES","OK","A2+",51,"A2+","SAME LEVEL","NA"]
[74377604,"GERARDO CARDOZO RINCON","DOCENTE","DEPARTAMENTO DE HUMANIDADES","OK","B1",61,"B1","SAME LEVEL","NA"]
[74379615,"EDGAR TAMARA PUERTO","DOCENTE","DEPARTAMENTO DE HUMANIDADES","OK","A2",27,"A2","SAME LEVEL","NA"]
[75078612,"ALEXANDER ANTONIO PUERTA PINEDA","DOCENTE","DEPARTAMENTO DE HUMANIDADES","OK","A2",26,"A2","SAME LEVEL","NA"]
[1020760944,"CARLOS ANDRES TORRALBA CANON","DOCENTE","DEPARTAMENTO DE HUMANIDADES","OK","A2+",57,"A2+","SAME LEVEL","NA"]
[1049604835,"DIEGO EDGARDO ROJAS ESCOBAR","DIRECTOR (A)","DEPARTAMENTO DE HUMANIDADES","OK","A1",24,"A1","SAME LEVEL","NA"]
[1049604935,"JONNATHAN ABDUL RINCON DIAZ","DOCENTE","DEPARTAMENTO DE HUMANIDADES","OK","A1",26,"A2","LEVEL UP","NA"]
[1049609922,"RAFAEL RICARDO BOHORQUEZ AUNTA","DOCENTE","DEPARTAMENTO DE HUMANIDADES","OK","A2+",46,"A2+",{"$f":"+IF(F64=\"NP\",\"NA\",IF(F64=H64,\"SAME LEVEL\",0))","v":"SAME LEVEL"},"NA"]
[1053327936,"DAVID SAENZ GUERRERO","DOCENTE","DEPARTAMENTO DE HUMANIDADES","OK","NP",89,"B2",{"$f":"+IF(F65=\"NP\",\"NA\",IF(F65=H65,\"SAME LEVEL\",0))","v":"NA"},"NA"]
[1127207081,"DANIEL MAURICIO MOYA URUENA","DOCENTE","DEPARTAMENTO DE HUMANIDADES","OK","B2+",97,"C1","LEVEL UP","NA"]
[51872394,"CLAUDIA LILIANA RAMOS QUINTERO","DOCENTE","DEPARTAMENTO DE HUMANIDADES","OK","NP",41,"A2",{"$f":"+IF(F67=\"NP\",\"NA\",IF(F67=H67,\"SAME LEVEL\",0))","v":"NA"},"NA"]
[3228676,"SANTIAGO MARIA BORDAMALO ECHEVERRI","DOCENTE","DEPARTAMENTO DE HUMANIDADES","OK","A2",39,"A2",{"$f":"+IF(F68=\"NP\",\"NA\",IF(F68=H68,\"SAME LEVEL\",0))","v":"SAME LEVEL"},"NA"]
[6775513,"JOSE EDUARDO PARDO VALENZUELA","DOCENTE","DEPARTAMENTO DE HUMANIDADES","OK","A1",19,"A1",{"$f":"+IF(F69=\"NP\",\"NA\",IF(F69=H69,\"SAME LEVEL\",0))","v":"SAME LEVEL"},"NA"]
[1070592370,"DIEGO FERNANDO BARRIOS ANDRADE","DOCENTE","DEPARTAMENTO DE HUMANIDADES","OK","B1",81,"B1+","LEVEL UP","NA"]
[40038073,"CLAUDIA YADIRA QUINTERO CASTILLO","AUXILIAR","CAFETERIA","OK","NP",20,"A1",{"$f":"+IF(F71=\"NP\",\"NA\",IF(F71=H71,\"SAME LEVEL\",0))","v":"NA"},"NA"]
[40042618,"LUZ MIREYA CARDENAS MARTINEZ","AUXILIAR","CAFETERIA","OK","NP",16,"A1",{"$f":"+IF(F72=\"NP\",\"NA\",IF(F72=H72,\"SAME LEVEL\",0))","v":"NA"},"NA"]
[1019011785,"OFILIA RUIZ MOLINA","AUXILIAR","CAFETERIA","OK","NP",23,"A1",{"$f":"+IF(F73=\"NP\",\"NA\",IF(F73=H73,\"SAME LEVEL\",0))","v":"NA"},"NA"]
[1049625268,"ERIKA YERALDIN NINO MENDOZA","AUXILIAR","CAFETERIA","OK","NP",26,"A2",{"$f":"+IF(F74=\"NP\",\"NA\",IF(F74=H74,\"SAME LEVEL\",0))","v":"NA"},"NA"]
[7188110,"OSCAR JAVIER BARAHONA ROMERO","PROFESIONAL SOPORTE","CAMPUS VIRTUAL","OK","NP",21,"A1",{"$f":"+IF(F75=\"NP\",\"NA\",IF(F75=H75,\"SAME LEVEL\",0))","v":"NA"},"NA"]
[33368288,"LILIANA MENDIVELSO MELO","DIRECTOR (A) ACADEMICO (A)","CAMPUS VIRTUAL","OK","A2",23,"A1","LEVEL DOWN","NA"]
[33377522,"LYDA ALEXANDRA ARCOS AVILA","PROFESIONAL SOPORTE","CAMPUS VIRTUAL","OK","A1",24,"A1",{"$f":"+IF(F77=\"NP\",\"NA\",IF(F77=H77,\"SAME LEVEL\",0))","v":"SAME LEVEL"},"NA"]
[1002327894,"ANGELA PATRICIA JEREZ PAEZ","PROFESIONAL SOPORTE","CAMPUS VIRTUAL","OK","A2+",23,"A1","LEVEL DOWN","NA"]
[1097666178,"BAYRON SAMUEL MARIN ORTIZ","PROFESIONAL SOPORTE","CAMPUS VIRTUAL","OK","NP",19,"A1",{"$f":"+IF(F79=\"NP\",\"NA\",IF(F79=H79,\"SAME LEVEL\",0))","v":"NA"},"NA"]
[1056956709,"DIEGO ALEJANDRO VELA BELTRAN","PROFESIONAL SOPORTE","CAMPUS VIRTUAL","OK","A2+",46,"A2+",{"$f":"+IF(F80=\"NP\",\"NA\",IF(F80=H80,\"SAME LEVEL\",0))","v":"SAME LEVEL"},"NA"]
[33377742,"ERIKA MARCELA MONROY HERNANDEZ","PROFESIONAL SOPORTE","CONSULTORIO JURIDICO","OK","A2",26,"A2",{"$f":"+IF(F81=\"NP\",\"NA\",IF(F81=H81,\"SAME LEVEL\",0))","v":"SAME LEVEL"},"NA"]
[40029725,"MARIA MERCEDES RIANO ROA","AUXILIAR","CONSULTORIO JURIDICO","OK","A2",26,"A2",{"$f":"+IF(F82=\"NP\",\"NA\",IF(F82=H82,\"SAME LEVEL\",0))","v":"SAME LEVEL"},"NA"]
[75096094,"RUBEN DARIO SERNA SALAZAR","DIRECTOR (A)","CONSULTORIO JURIDICO","OK","A1","NP","NP","NA","NA"]
[1002461582,"MAGDA CONSUELO CUESTA LOPEZ","MONITOR","CONSULTORIO JURIDICO","OK","NP",36,"A2",{"$f":"+IF(F84=\"NP\",\"NA\",IF(F84=H84,\"SAME LEVEL\",0))","v":"NA"},"NA"]
[1002555485,"JUANITA MARIA RODRIGUEZ CENTENO","MONITOR","CONSULTORIO JURIDICO","OK","NP",37,"A2","NA","NA"]
[1010013667,"CRISTIAN DAVID PACHECO ROJAS","MONITOR","CONSULTORIO JURIDICO","OK","NP",27,"A2","NA","NA"]
[1049647154,"ADRIANA MARIA VALCARCEL MONROY","PROFESIONAL SOPORTE","CONSULTORIO JURIDICO","OK","NP",30,"A2","NA","NA"]
[1049654444,"LAURA MANUELA LESMES DUITAMA","AUXILIAR","CONSULTORIO JURIDICO","OK","NP",70,"B1","NA","NA"]
[1049658295,"PAULA ANDREA JIMENEZ NOCUA","MONITOR","CONSULTORIO JURIDICO","OK","NP","NP","NP","NA","NA"]
[1052401268,"DAYLIN ALEJANDRA SANCHEZ JAIMES","AUXILIAR","CONSULTORIO JURIDICO","OK","NP",23,"A1","NA","NA"]
[1053611827,"LINA MARCELA CAMARGO MARTINEZ","COORDINADOR (A)","CONSULTORIO JURIDICO","OK","A2",31,"A2","SAME LEVEL","NA"]
[6764869,"PEDRO GUILLERMO PACHON EUGENIO","AUXILIAR","CRAI  USTA","OK","A2",31,"A2","SAME LEVEL","NA"]
[7178155,"SAMUEL RICARDO CUERVO MORA","PROFESIONAL SOPORTE","CRAI  USTA","OK","NP",26,"A2","NA","NA"]
[40035160,"LUZ MARINA DUENAS CONTRERAS","PROFESIONAL SOPORTE","CRAI  USTA","OK","A1",21,"A1","SAME LEVEL","NA"]
[40044699,"SANDRA ROSMARY CARDENAS RUIZ","PROFESIONAL SOPORTE","CRAI  USTA","OK","NP",16,"A1","NA","NA"]
[52496788,"DELFINA CUBILLOS CAMACHO","AUXILIAR","CRAI  USTA","OK","A1",31,"A2","LEVEL UP","NA"]
[1049632796,"KARENTH JULIANA BOHADA SALAZAR","AUXILIAR","CRAI  USTA","OK","NP",23,"A1",{"$f":"+IF(F97=\"NP\",\"NA\",IF(F97=H97,\"SAME LEVEL\",0))","v":"NA"},"NA"]
[1071172038,"JULIAN DAVID CRUZ PRIETO","AUXILIAR","CRAI  USTA","OK","NP",19,"A1","NA","NA"]
[72286042,"JUAN CARLOS CANOLES VASQUES","DIRECTOR (A)","CRAI  USTA","OK","NP",36,"A2","NA","NA"]
[1049626976,"LORENA STEPHANNY ABRIL RODRIGUEZ","DIRECTOR (A)","DEPARTAMENTO DE ADMISIONES","OK","NP",31,"A2","NA","NA"]
[1049646633,"JONATHAN DUBAN CARDENAS AYALA","AUXILIAR","DEPARTAMENTO DE ADMISIONES","OK","NP",21,"A1","NA","NA"]
[1007420966,"ANGIE CAROLINA BOHORQUEZ GOMEZ","AUXILIAR","DEPARTAMENTO DE ADMISIONES","OK","NP",20,"A1","NA","NA"]
[1049645329,"MARIA PAULA GUIO LOZANO","PROFESIONAL SOPORTE","DEPARTAMENTO DE ADMISIONES","OK","NP","NP","A2","NA","NA"]
[1049638813,"DANIELA ESPERANZA JIMENEZ CORONADO","AUXILIAR","DEPARTAMENTO DE ADMISIONES","OK","A2","NP","NP","NA","NA"]
[7177089,"BORIS ORLANDO HERNANDEZ BERNAL","DIRECTOR (A)","DEPARTAMENTO DE COMUNICACIONES","OK","NP","NP","NP",{"$f":"+IF(F105=\"NP\",\"NA\",IF(F105=H105,\"SAME LEVEL\",0))","v":"NA"},"NA"]
[7180903,"IVAN DARIO GONZALEZ RUBIO","COORDINADOR (A)","DEPARTAMENTO DE COMUNICACIONES","OK","NP",33,"A2",{"$f":"+IF(F106=\"NP\",\"NA\",IF(F106=H106,\"SAME LEVEL\",0))","v":"NA"},"NA"]
[1002365558,"JUAN PABLO AMAYA ACEVEDO","AUXILIAR","DEPARTAMENTO DE COMUNICACIONES","OK","A1",33,"A2","LEVEL UP","NA"]
[1015450182,"DANIEL JOSE GUERRERO CAMACHO","PROFESIONAL SOPORTE","DEPARTAMENTO DE COMUNICACIONES","OK","A2+",39,"A2","LEVEL DOWN","NA"]
[1049602627,"YULY LORENA ORDUZ VALBUENA","PROFESIONAL SOPORTE","DEPARTAMENTO DE COMUNICACIONES","OK","A2",51,"A2+","LEVEL UP","NA"]
[1049628587,"LINA MARIA ORTIZ MOLINA","PROFESIONAL SOPORTE","DEPARTAMENTO DE COMUNICACIONES","OK","A2",39,"A2",{"$f":"+IF(F110=\"NP\",\"NA\",IF(F110=H110,\"SAME LEVEL\",0))","v":"SAME LEVEL"},"NA"]
[1049633174,"FABIAN CAMILO PULIDO GARAVITO","PROFESIONAL SOPORTE","DEPARTAMENTO DE COMUNICACIONES","OK","NP","NP","NP",{"$f":"+IF(F111=\"NP\",\"NA\",IF(F111=H111,\"SAME LEVEL\",0))","v":"NA"},"NA"]
[1049655290,"IVAN ARLEY GONZALEZ URICOECHEA","AUXILIAR","DEPARTAMENTO DE COMUNICACIONES","OK","NP",41,"A2",{"$f":"+IF(F112=\"NP\",\"NA\",IF(F112=H112,\"SAME LEVEL\",0))","v":"NA"},"NA"]
[1049656621,"ERIKA JASMIN AMAYA ACEVEDO","AUXILIAR","DEPARTAMENTO DE COMUNICACIONES","OK","A2",24,"A1","LEVEL DOWN","NA"]
[1052396739,"WILLIAM FERNANDO ABRIL AVELLA","PROFESIONAL SOPORTE","DEPARTAMENTO DE COMUNICACIONES","OK","A2",49,"A2+","LEVEL UP","NA"]
[1053867530,"JAZBLADY RUIZ CIFUENTES","PROFESIONAL SOPORTE","DEPARTAMENTO DE COMUNICACIONES","OK","NP",60,"A2+",{"$f":"+IF(F115=\"NP\",\"NA\",IF(F115=H115,\"SAME LEVEL\",0))","v":"NA"},"NA"]
[1056030143,"MARTHA LILIANA SUAREZ CRUCES","PROFESIONAL SOPORTE","DEPARTAMENTO DE COMUNICACIONES","OK","NP",24,"A1",{"$f":"+IF(F116=\"NP\",\"NA\",IF(F116=H116,\"SAME LEVEL\",0))","v":"NA"},"NA"]
[1056931080,"MIGUEL ANGEL CUENCA ALVAREZ","AUXILIAR","DEPARTAMENTO DE COMUNICACIONES","OK","A2",49,"A2+","LEVEL UP","NA"]
[1057591474,"JESSICA LAURETH ROMERO JIMENEZ","AUXILIAR","DEPARTAMENTO DE COMUNICACIONES","OK","NP",24,"A1",{"$f":"+IF(F118=\"NP\",\"NA\",IF(F118=H118,\"SAME LEVEL\",0))","v":"NA"},"NA"]
[1083018568,"JESUS DAVID PINILLA VEGA","PROFESIONAL SOPORTE","DEPARTAMENTO DE COMUNICACIONES","OK","B1",77,"B1+","LEVEL UP","NA"]
[1090433613,"ANDRES FELIPE RAMIREZ LLANES","PROFESIONAL SOPORTE","DEPARTAMENTO DE COMUNICACIONES","OK","A1",21,"A1",{"$f":"+IF(F120=\"NP\",\"NA\",IF(F120=H120,\"SAME LEVEL\",0))","v":"SAME LEVEL"},"NA"]
[19431979,"JOSE GUNDISALVO ORJUELA MEDINA","DIRECTOR (A)","DEPARTAMENTO DE CONTABILIDAD","OK","NP",36,"A2",{"$f":"+IF(F121=\"NP\",\"NA\",IF(F121=H121,\"SAME LEVEL\",0))","v":"NA"},"NA"]
[1049648088,"LAURA GISELLE GUERRERO ROJAS","AUXILIAR","DEPARTAMENTO DE CONTABILIDAD","OK","NP",34,"A2",{"$f":"+IF(F122=\"NP\",\"NA\",IF(F122=H122,\"SAME LEVEL\",0))","v":"NA"},"NA"]
[1051211946,"LUZ ALBA SARMIENTO SUAREZ","AUXILIAR","DEPARTAMENTO DE CONTABILIDAD","OK","A1",26,"A2","LEVEL UP","NA"]
[1007518045,"EDNA JULIANA DIAZ ESTUPINAN","PROFESIONAL SOPORTE","DEPARTAMENTO DE CONTABILIDAD","OK","NP",40,"A2",{"$f":"+IF(F124=\"NP\",\"NA\",IF(F124=H124,\"SAME LEVEL\",0))","v":"NA"},"NA"]
[1007678506,"MATEO MEDINA NINO","AUXILIAR","DEPARTAMENTO DE CONTABILIDAD","OK","NP",20,"A1",{"$f":"+IF(F125=\"NP\",\"NA\",IF(F125=H125,\"SAME LEVEL\",0))","v":"NA"},"NA"]
[4081745,"JOHN FREDY HERNANDEZ","LABORATORISTA","DEPARTAMENTO DE LABORATORIOS","OK","NP",24,"A1",{"$f":"+IF(F126=\"NP\",\"NA\",IF(F126=H126,\"SAME LEVEL\",0))","v":"NA"},"NA"]
[33365734,"JEIMY MERCEDES POVEDA AVILA","DIRECTOR (A)","DEPARTAMENTO DE LABORATORIOS","OK","NP",24,"A1",{"$f":"+IF(F127=\"NP\",\"NA\",IF(F127=H127,\"SAME LEVEL\",0))","v":"NA"},"NA"]
[1049622230,"HENDER EDUARDO LOPEZ RODRIGUEZ","PROFESIONAL SOPORTE","DEPARTAMENTO DE LABORATORIOS","OK","NP",73,"B1",{"$f":"+IF(F128=\"NP\",\"NA\",IF(F128=H128,\"SAME LEVEL\",0))","v":"NA"},"NA"]
[1049628654,"LUIS JULIAN PUENTES AVILA","LABORATORISTA","DEPARTAMENTO DE LABORATORIOS","OK","A2+",66,"B1","LEVEL UP","NA"]
[1049629505,"FREDY GONZALO ROJAS CRUZ","LABORATORISTA","DEPARTAMENTO DE LABORATORIOS","OK","A2",31,"A2",{"$f":"+IF(F130=\"NP\",\"NA\",IF(F130=H130,\"SAME LEVEL\",0))","v":"SAME LEVEL"},"NA"]
[1049632441,"HARVEY AUGUSTO HERNANDEZ LEANDRO","LABORATORISTA","DEPARTAMENTO DE LABORATORIOS","OK","A2",50,"A2+","LEVEL UP","NA"]
[1049643489,"EDWIN RICARDO BERMUDEZ CIFUENTES","LABORATORISTA","DEPARTAMENTO DE LABORATORIOS","OK","NP",27,"A2",{"$f":"+IF(F132=\"NP\",\"NA\",IF(F132=H132,\"SAME LEVEL\",0))","v":"NA"},"NA"]
[1049643818,"YURI ALEJANDRA RODRIGUEZ RODRIGUEZ","ANALISTA","DEPARTAMENTO DE LABORATORIOS","OK","A1",19,"A1",{"$f":"+IF(F133=\"NP\",\"NA\",IF(F133=H133,\"SAME LEVEL\",0))","v":"SAME LEVEL"},"NA"]
[1052358418,"DUVAN ALFONSO CARO PEDREROS","LABORATORISTA","DEPARTAMENTO DE LABORATORIOS","OK","A2",29,"A2",{"$f":"+IF(F134=\"NP\",\"NA\",IF(F134=H134,\"SAME LEVEL\",0))","v":"SAME LEVEL"},"NA"]
[1052388212,"JAVIER EDUARDO MUNOZ TORRES","ANALISTA","DEPARTAMENTO DE LABORATORIOS","OK","B1",41,"A2","LEVEL DOWN","NA"]
[1052388444,"ZULMA YISSETH SUAREZ SILVA","LABORATORISTA","DEPARTAMENTO DE LABORATORIOS","OK","NP",27,"A2",{"$f":"+IF(F136=\"NP\",\"NA\",IF(F136=H136,\"SAME LEVEL\",0))","v":"NA"},"NA"]
[1052403338,"JOHAN SEBASTIAN BAUTISTA RINCON","LABORATORISTA","DEPARTAMENTO DE LABORATORIOS","OK","NP",26,"A2","NA","NA"]
[1057589970,"MOISES DAVID CORREA AFANADOR","COORDINADOR (A)","DEPARTAMENTO DE LABORATORIOS","OK","NP",26,"A2","NA","NA"]
[40031954,"SANDRA PATRICIA GUERRERO GONZALEZ","DIRECTOR (A)","DEPARTAMENTO DE PRESUPUESTO","OK","NP",24,"A1","NA","NA"]
[23623039,"ALEXIA PILAR GARZON ORTEGA","DIRECTOR (A)","DEPARTAMENTO DE SINDICATURA","OK","NP",23,"A1","NA","NA"]
[33379457,"LORENA CARLAY VELANDIA","AUXILIAR","DEPARTAMENTO DE SINDICATURA","OK","NP",24,"A1","NA","NA"]
[40040193,"ANGELA YAZMIN AVELLA MARTINEZ","PROFESIONAL SOPORTE","DEPARTAMENTO DE SINDICATURA","OK","A2",53,"A2+","LEVEL UP","NA"]
[1002370302,"MANUEL RICARDO CRUZ CRUZ","AUXILIAR","DEPARTAMENTO DE SINDICATURA","OK","NP",19,"A1",{"$f":"+IF(F143=\"NP\",\"NA\",IF(F143=H143,\"SAME LEVEL\",0))","v":"NA"},"NA"]
[1049639261,"XIOMARA KATHERIN RODRIGUEZ MORENO","AUXILIAR","DEPARTAMENTO DE SINDICATURA","OK","A2+",59,"A2+","SAME LEVEL","NA"]
[1049646943,"VICTOR MANUEL FORERO TORRES","AUXILIAR","DEPARTAMENTO DE SINDICATURA","OK","A1",19,"A1","SAME LEVEL","NA"]
[1049651172,"MARIA FERNANDA NINO BARON","AUXILIAR","DEPARTAMENTO DE SINDICATURA","OK","NP",26,"A2","NA","NA"]
[1049655788,"DANIELA ALEJANDRA MARTINEZ TELLEZ","AUXILIAR","DEPARTAMENTO DE SINDICATURA","OK","NP",30,"A2","NA","NA"]
[1098789885,"NICOLAS DAVID RODRIGUEZ GARCES","PROFESIONAL SOPORTE","DEPARTAMENTO DE SINDICATURA","OK","NP",63,"B1","NA","NA"]
[79586689,"CARLOS EDUARDO CORREDOR CELY","DIRECTOR (A)","DEPARTAMENTO JURIDICO","OK","NP","NP","NP","NA","NA"]
[1049658948,"ANGELA MARIANA ACERO CIFUENTES","AUXILIAR","DEPARTAMENTO JURIDICO","OK","NP",20,"A1","NA","NA"]
[1057604326,"LAURA DAYANA RINCON DIAZ","PROFESIONAL SOPORTE","DEPARTAMENTO JURIDICO","OK","A2+","NP","NP","NA","NA"]
[1049641150,"JULIO DANIEL RAMOS RODRIGUEZ","PROFESIONAL SOPORTE","DIR DE EVANGELIZACION Y CULTUR","OK","NP",33,"A2",{"$f":"+IF(F152=\"NP\",\"NA\",IF(F152=H152,\"SAME LEVEL\",0))","v":"NA"},"NA"]
[1096952378,"JOHN HENRY JURADO BALAGUERA","AUXILIAR","DIR DE EVANGELIZACION Y CULTUR","OK","NP",21,"A1",{"$f":"+IF(F153=\"NP\",\"NA\",IF(F153=H153,\"SAME LEVEL\",0))","v":"NA"},"NA"]
[33378321,"DIANA EVIT SILVA POVEDA","PROFESIONAL SOPORTE","DIR DE INVESTIGACION E INNOVAC","OK","A1",13,"A1",{"$f":"+IF(F154=\"NP\",\"NA\",IF(F154=H154,\"SAME LEVEL\",0))","v":"SAME LEVEL"},"NA"]
[35261639,"SANDRA CONSUELO DIAZ BELLO","DIRECTOR (A)","DIR DE INVESTIGACION E INNOVAC","OK","A2",50,"A2+","LEVEL UP","NA"]
[40029906,"YANETH ABRIL SIERRA","PROFESIONAL SOPORTE","DIR DE INVESTIGACION E INNOVAC","OK","NP",24,"A1",{"$f":"+IF(F156=\"NP\",\"NA\",IF(F156=H156,\"SAME LEVEL\",0))","v":"NA"},"NA"]
[40041232,"MARCELA LISETH FERNANDEZ PEDREROS","COORDINADOR (A)","DIR DE INVESTIGACION E INNOVAC","OK","A2+",21,"A1","LEVEL DOWN","NA"]
[1049620001,"JURY ALEJANDRA GUIO RAMIREZ","PROFESIONAL SOPORTE","DIR DE INVESTIGACION E INNOVAC","OK","A2",33,"A2",{"$f":"+IF(F158=\"NP\",\"NA\",IF(F158=H158,\"SAME LEVEL\",0))","v":"SAME LEVEL"},"NA"]
[1049628208,"YENNIFER ALEXANDRA CARRERO CASTANO","ANALISTA OPERATIVO","DIR DE INVESTIGACION E INNOVAC","OK","NP",23,"A1",{"$f":"+IF(F159=\"NP\",\"NA\",IF(F159=H159,\"SAME LEVEL\",0))","v":"NA"},"NA"]
[1049639505,"DANIEL ALONSO NEIRA CEPEDA","PROFESIONAL SOPORTE","DIR DE INVESTIGACION E INNOVAC","OK","NP",39,"A2",{"$f":"+IF(F160=\"NP\",\"NA\",IF(F160=H160,\"SAME LEVEL\",0))","v":"NA"},"NA"]
[1049651198,"MARTHA CAROLINA BERNAL DOTOR","AUXILIAR","DIR DE INVESTIGACION E INNOVAC","OK","A2",20,"A1","LEVEL DOWN","NA"]
[1049658422,"NICOLAS ALEJANDRO MONTANEZ RIVEROS","ANALISTA OPERATIVO","DIR DE INVESTIGACION E INNOVAC","OK","NP",77,"B1+",{"$f":"+IF(F162=\"NP\",\"NA\",IF(F162=H162,\"SAME LEVEL\",0))","v":"NA"},"NA"]
[1050200492,"YON ALI TORRES TORRES","ANALISTA OPERATIVO","DIR DE INVESTIGACION E INNOVAC","OK","NP",39,"A2",{"$f":"+IF(F163=\"NP\",\"NA\",IF(F163=H163,\"SAME LEVEL\",0))","v":"NA"},"NA"]
[33366640,"MARYORY BIBIANA FAJARDO RIVERA","PROFESIONAL SOPORTE","DIR DE PLANEACION DESARROLLO E","OK","A1",26,"A2","LEVEL UP","NA"]
[33369791,"IVONNE MARITZA CONTRERAS SOSA","COORDINADOR (A)","DIR DE PLANEACION DESARROLLO E","OK","NP",36,"A2",{"$f":"+IF(F165=\"NP\",\"NA\",IF(F165=H165,\"SAME LEVEL\",0))","v":"NA"},"NA"]
[1049603556,"ANDREA MONROY FAJARDO","AUXILIAR","DIR DE PLANEACION DESARROLLO E","OK","A1","NP","NP","NA","NA"]
[1049615497,"BLANCA BELCY RIVERA AMADO","PROFESIONAL SOPORTE","DIR DE PLANEACION DESARROLLO E","OK","A2",26,"A2",{"$f":"+IF(F167=\"NP\",\"NA\",IF(F167=H167,\"SAME LEVEL\",0))","v":"SAME LEVEL"},"NA"]
[1049630593,"ANGELA ROCIO CHAPARRO VARGAS","DIRECTOR (A)","DIR DE PLANEACION DESARROLLO E","OK","A2+",77,"B1+","LEVEL UP","NA"]
[1049633339,"DIEGO MAURICIO BERNAL RIOS","PROFESIONAL SOPORTE","DIR DE PLANEACION DESARROLLO E","OK","A2",26,"A2",{"$f":"+IF(F169=\"NP\",\"NA\",IF(F169=H169,\"SAME LEVEL\",0))","v":"SAME LEVEL"},"NA"]
[1049652379,"LAURA VANESA MANRIQUE QUINTERO","PROFESIONAL SOPORTE","DIR DE PLANEACION DESARROLLO E","OK","A2",33,"A2",{"$f":"+IF(F170=\"NP\",\"NA\",IF(F170=H170,\"SAME LEVEL\",0))","v":"SAME LEVEL"},"NA"]
[1055273674,"ANDRES FELIPE TORRES VARGAS","COORDINADOR (A)","DIR DE PLANEACION DESARROLLO E","OK","NP",30,"A2",{"$f":"+IF(F171=\"NP\",\"NA\",IF(F171=H171,\"SAME LEVEL\",0))","v":"NA"},"NA"]
[40040587,"SANDRA PATRICIA MURCIA","AUXILIAR","DIRECCION DE RELACIONES INTERN","OK","A1",23,"A1",{"$f":"+IF(F172=\"NP\",\"NA\",IF(F172=H172,\"SAME LEVEL\",0))","v":"SAME LEVEL"},"NA"]
[33379173,"ALEJANDRA PAOLA SANCHEZ BOLIVAR","DIRECTOR (A)","DIRECCION DE RELACIONES INTERN","OK","NP",56,"A2+",{"$f":"+IF(F173=\"NP\",\"NA\",IF(F173=H173,\"SAME LEVEL\",0))","v":"NA"},"NA"]
[33377530,"DIANA ALEXANDRA BOLIVAR RODRIGUEZ","COORDINADOR (A)","DIRECCION NACIONAL DE PROYECCI","OK","A2",20,"A1","LEVEL DOWN","NA"]
[40035530,"SUSANA JIMENA BARRETO BEDOYA","DIRECTOR (A)","DIRECCION NACIONAL DE PROYECCI","OK","B1",66,"B1",{"$f":"+IF(F175=\"NP\",\"NA\",IF(F175=H175,\"SAME LEVEL\",0))","v":"SAME LEVEL"},"NA"]
[1002365951,"ANDRES FELIPE FAGUA BARON","AUXILIAR","DIRECCION NACIONAL DE PROYECCI","OK","NP",21,"A1","NA","NA"]
[1018431244,"ANGIE PAOLA PRADILLA SANABRIA","PROFESIONAL SOPORTE","DIRECCION NACIONAL DE PROYECCI","OK","NP",64,"B1","NA","NA"]
[1049624121,"ANA CAROLINA OSPINA MOYA","COORDINADOR (A)","DIRECCION NACIONAL DE PROYECCI","OK","A2",39,"A2","SAME LEVEL","NA"]
[1049651117,"DIANA MARCELA MUNEVAR FAJARDO","AUXILIAR","DIRECCION NACIONAL DE PROYECCI","OK","A1",20,"A1","SAME LEVEL","NA"]
[33369037,"LAURA LISSETHE ESTUPINAN RODRIGUEZ","AUXILIAR","DPTO ADQUISICIONES Y SUMINISTR","OK","NP","NP","NP","NA","NA"]
[1002366528,"YESICA PAOLA ACEVEDO BERNAL","AUXILIAR","DPTO ADQUISICIONES Y SUMINISTR","OK","NP",26,"A2","NA","NA"]
[1049606340,"DIEGO ARMANDO NINO CASTRO","DIRECTOR (A)","DPTO ADQUISICIONES Y SUMINISTR","OK","NP","NP","NP","NA","NA"]
[1053339371,"JEFFERSON DAVID GONZALEZ PORRAS","PROFESIONAL SOPORTE","DPTO ADQUISICIONES Y SUMINISTR","OK","NP","NP","NP","NA","NA"]
[1053725077,"YONATAN CAMILO VERGARA SALCEDO","AUXILIAR","DPTO ADQUISICIONES Y SUMINISTR","OK","NP","NP","NP","NA","NA"]
[1049624952,"YHUVER ALBERTO RODRIGUEZ GONZALEZ","AUXILIAR","DPTO ADQUISICIONES Y SUMINISTR","OK","NP","NP","NP","NA","NA"]
[1049644148,"CLAUDIA VIVIANA HERNANDEZ DIAZ","AUXILIAR","DPTO ADQUISICIONES Y SUMINISTR","OK","NP","NP","NP","NA","NA"]
[40026968,"CARMEN LETICIA MELENDEZ ALVAREZ","RECEPCIONISTA","DPTO GESTION DEL TALENTO HUMAN","OK","NP",24,"A1","NA","NA"]
[1049603953,"BETTY RUBIO PACHECO","COORDINADOR (A)","DPTO GESTION DEL TALENTO HUMAN","OK","NP",24,"A1","NA","NA"]
[1049637285,"BRIGITHE ALEJANDRA CAMPOS VILLAMIL","PROFESIONAL SOPORTE","DPTO GESTION DEL TALENTO HUMAN","OK","A2",29,"A2","SAME LEVEL","NA"]
[1049652594,"PAULA ANDREA GAMBOA SAMACA","AUXILIAR","DPTO GESTION DEL TALENTO HUMAN","OK","NP",27,"A2","NA","NA"]
[1094532749,"ANABEL SERRANO SANDOVAL","PROFESIONAL SOPORTE","DPTO GESTION DEL TALENTO HUMAN","OK","A2",16,"A1","LEVEL DOWN","NA"]
[1049646444,"DIANA PAOLA CARRENO LEON","DIRECTOR (A)","DPTO GESTION DEL TALENTO HUMAN","OK","NP",49,"A2+",{"$f":"+IF(F192=\"NP\",\"NA\",IF(F192=H192,\"SAME LEVEL\",0))","v":"NA"},"NA"]
[7173160,"ABELARDO GRANADOS PALACIOS","TECNICO","DPTO PLANTA FISICA Y SERV GENE","OK","NP",23,"A1",{"$f":"+IF(F193=\"NP\",\"NA\",IF(F193=H193,\"SAME LEVEL\",0))","v":"NA"},"NA"]
[7176853,"EDGAR EDUARDO SOLANO GONZALEZ","DIRECTOR (A)","DPTO PLANTA FISICA Y SERV GENE","OK","A1",27,"A2","LEVEL UP","NA"]
[7176854,"JOHN FERNEY PAVA RINCON","AUXILIAR","DPTO PLANTA FISICA Y SERV GENE","OK","NP",21,"A1",{"$f":"+IF(F195=\"NP\",\"NA\",IF(F195=H195,\"SAME LEVEL\",0))","v":"NA"},"NA"]
[7177438,"JOSE IGNACIO ALFONSO PALACIOS","AUXILIAR","DPTO PLANTA FISICA Y SERV GENE","OK","NP",36,"A2","NA","NA"]
[7185143,"LUIS ALBERTO GARCIA CASTIBLANCO","AUXILIAR","DPTO PLANTA FISICA Y SERV GENE","OK","NP",20,"A1","NA","NA"]
[7306757,"JOSE MIGUEL ORTIZ","AUXILIAR","DPTO PLANTA FISICA Y SERV GENE","OK","NP",27,"A2","NA","NA"]
[23284496,"LUZ MYRIAM ECHEVERRIA CATIVE","AUXILIAR","DPTO PLANTA FISICA Y SERV GENE","OK","NP",20,"A1","NA","NA"]
[33369370,"ASTRID CAROLINA BOHORQUEZ AMAYA","AUXILIAR","DPTO PLANTA FISICA Y SERV GENE","OK","NP",20,"A1","NA","NA"]
[33379422,"LINA ROCIO RINCON GRIJALBA","AUXILIAR","DPTO PLANTA FISICA Y SERV GENE","OK","NP",27,"A2","NA","NA"]
[40022027,"ASCENCION GUERRERO GUIO","AUXILIAR","DPTO PLANTA FISICA Y SERV GENE","OK","NP",24,"A1","NA","NA"]
[40030190,"ROCIO YAQUELIN ROJAS","AUXILIAR","DPTO PLANTA FISICA Y SERV GENE","OK","NP",23,"A1","NA","NA"]
[40035409,"MARIA LENY FONSECA CALDERON","AUXILIAR","DPTO PLANTA FISICA Y SERV GENE","OK","NP",24,"A1","NA","NA"]
[40036051,"ELVIA GAMBOA CRUZ","AUXILIAR","DPTO PLANTA FISICA Y SERV GENE","OK","NP",17,"A1","NA","NA"]
[40049431,"LILIANA BERNAL LARA","AUXILIAR","DPTO PLANTA FISICA Y SERV GENE","OK","NP",23,"A1","NA","NA"]
[72326802,"JOSE JAIME MISAEL GAMA","AUXILIAR","DPTO PLANTA FISICA Y SERV GENE","OK","NP",27,"A2","NA","NA"]
[1049610604,"JORGE ENRIQUE CARDOZO","AUXILIAR","DPTO PLANTA FISICA Y SERV GENE","OK","NP",34,"A2","NA","NA"]
[1049628436,"PEDRO JOSE CORTES SANDOVAL","COORDINADOR (A)","DPTO PLANTA FISICA Y SERV GENE","OK","A2",33,"A2","SAME LEVEL","NA"]
[1049647257,"DANIELA ALEJANDRA MANJARRES GARZON","PROFESIONAL SOPORTE","DPTO PLANTA FISICA Y SERV GENE","OK","A2",44,"A2+","LEVEL UP","NA"]
[1057595880,"JESSICA PAOLA RODRIGUEZ MARTINEZ","AUXILIAR","DPTO PLANTA FISICA Y SERV GENE","OK","NP",23,"A1",{"$f":"+IF(F211=\"NP\",\"NA\",IF(F211=H211,\"SAME LEVEL\",0))","v":"NA"},"NA"]
[1110499371,"DIANA CAROLINA MANRIQUE GARZON","AUXILIAR","DPTO PLANTA FISICA Y SERV GENE","OK","NP",31,"A2",{"$f":"+IF(F212=\"NP\",\"NA\",IF(F212=H212,\"SAME LEVEL\",0))","v":"NA"},"NA"]
[33377480,"MARIA ROSALBA ROMERO RODRIGUEZ","AUXILIAR","DPTO PLANTA FISICA Y SERV GENE","OK","NP","NP","NP",{"$f":"+IF(F213=\"NP\",\"NA\",IF(F213=H213,\"SAME LEVEL\",0))","v":"NA"},"NA"]
[52587661,"ANGELICA MARIA SALAZAR MADRIGAL","DIRECTOR (A)","DPTO REGISTRO Y CONTROL ACADEM","OK","A2+",44,"A2+",{"$f":"+IF(F214=\"NP\",\"NA\",IF(F214=H214,\"SAME LEVEL\",0))","v":"SAME LEVEL"},"NA"]
[1049616196,"LEIDY MILENA RODRIGUEZ PULIDO","PROFESIONAL SOPORTE","DPTO REGISTRO Y CONTROL ACADEM","OK","A1",30,"A2","LEVEL UP","NA"]
[1049654811,"MYRIAM ROSALBA NEIRA SANCHEZ","AUXILIAR","DPTO REGISTRO Y CONTROL ACADEM","OK","A1",19,"A1",{"$f":"+IF(F216=\"NP\",\"NA\",IF(F216=H216,\"SAME LEVEL\",0))","v":"SAME LEVEL"},"NA"]
[836314,"EMILIO ALFREDO MARTINEZ AMADOR","TECNICO","DPTO TECNOLOGIA DE LA INFORMAC","OK","NP",29,"A2","NA","NA"]
[7187378,"SILVIO ALEXANDER GOMEZ CHAPARRO","DIRECTOR (A)","DPTO TECNOLOGIA DE LA INFORMAC","OK","NP",67,"B1","NA","NA"]
[1002396968,"DAVID FELIPE BLANCO RUBIO","TECNICO","DPTO TECNOLOGIA DE LA INFORMAC","OK","NP",37,"A2","NA","NA"]
[1049603141,"VICTOR HUGO PARRA BETANCOURT","TECNICO","DPTO TECNOLOGIA DE LA INFORMAC","OK","A1",23,"A1","SAME LEVEL","NA"]
[1049609741,"JULIO CESAR PEREZ JIMENEZ","TECNICO","DPTO TECNOLOGIA DE LA INFORMAC","OK","NP",27,"A2","NA","NA"]
[1049610647,"JOSE DAVID MESA BENITEZ","PROFESIONAL SOPORTE","DPTO TECNOLOGIA DE LA INFORMAC","OK","NP",30,"A2","NA","NA"]
[1049624543,"CARLOS ALBERTO GAMBOA BARON","TECNICO","DPTO TECNOLOGIA DE LA INFORMAC","OK","NP",23,"A1","NA","NA"]
[1049638757,"DIEGO ALEXANDER GUTIERREZ JIMENEZ","TECNICO","DPTO TECNOLOGIA DE LA INFORMAC","OK","NP",39,"A2","NA","NA"]
[1049647011,"EDUAR FABIAN CASTELBLANCO GALINDO","PROFESIONAL SOPORTE","DPTO TECNOLOGIA DE LA INFORMAC","OK","NP",27,"A2","NA","NA"]
[1049649762,"CRISTIAN DAVID SALAZAR APONTE","TECNICO","DPTO TECNOLOGIA DE LA INFORMAC","OK","NP",23,"A1","NA","NA"]
[1049653387,"OSCAR ANDRES RAMIREZ FAGUA","TECNICO","DPTO TECNOLOGIA DE LA INFORMAC","OK","NP",30,"A2","NA","NA"]
[1056804406,"DAYANA VANESSA LARROTA NINO","TECNICO","DPTO TECNOLOGIA DE LA INFORMAC","OK","NP",21,"A1","NA","NA"]
[1056930920,"DANILO ALFONSO ACUNA BECERRA","PROFESIONAL SOPORTE","DPTO TECNOLOGIA DE LA INFORMAC","OK","NP",30,"A2","NA","NA"]
[63490709,"MARIA XIMENA ARIZA GARCIA","DIRECTOR (A)","EDITORIAL CIENTIFICA","OK","A1",29,"A2","LEVEL UP","NA"]
[1049638515,"BLANCA CECILIA RIOS RODRIGUEZ","PROFESIONAL SOPORTE","INST DE JUTICIA Y PAZ PABLO VI","OK","B1+",81,"B1+",{"$f":"+IF(F231=\"NP\",\"NA\",IF(F231=H231,\"SAME LEVEL\",0))","v":"SAME LEVEL"},"NA"]
[40041148,"SANDRA ISABEL CARRENO GARZON","ASESOR","MARKETING Y GESTION COMERCIAL","OK","NP","NP","NP","NA","NA"]
[1049615195,"SONIA LORENA SANDOVAL ACUNA","PROFESIONAL SOPORTE","MARKETING Y GESTION COMERCIAL","OK","NP",47,"A2+","NA","NA"]
[1049636591,"YESSICA ALEJANDRA CARRILLO AVENDANO","ASESOR","MARKETING Y GESTION COMERCIAL","OK","NP",29,"A2","NA","NA"]
[1002599844,"JULIAN DAVID CASTELLANOS AYALA","AUXILIAR","OFICINA DE ARCHIVO GENERAL","OK","NP",29,"A2","NA","NA"]
[1049655291,"DIEGO ESTEBAN CHAVES VEGA","AUXILIAR","OFICINA DE ARCHIVO GENERAL","OK","NP",23,"A1","NA","NA"]
[1049609149,"LINA FERNANDA ORTEGA MORALES","AUDITOR (A) INTERNO (A)","OFICINA DE AUDITORIA INTERNA","OK","NP",31,"A2","NA","NA"]
[1049637196,"LIZETH PAOLA SALAS RODRIGUEZ","PROFESIONAL SOPORTE","OFICINA DE AUDITORIA INTERNA","OK","A1",26,"A2","LEVEL UP","NA"]
[1079990935,"YAMILETH SALAS PARAMO","AUXILIAR","OFICINA DE AUDITORIA INTERNA","OK","NP",19,"A1",{"$f":"+IF(F239=\"NP\",\"NA\",IF(F239=H239,\"SAME LEVEL\",0))","v":"NA"},"NA"]
[3065509,"ROMAN ERNESTO RODRIGUEZ JIMENEZ","INSTRUCTOR (A)","DPTO PROMO Y BIENESTAR INSTITU","OK","A2",30,"A2","SAME LEVEL","NA"]
[7185335,"DANIEL FERNANDO CORTES ROMERO","INSTRUCTOR (A)","DPTO PROMO Y BIENESTAR INSTITU","OK","NP",27,"A2","NA","NA"]
[7185353,"JOSE VICENTE RODRIGUEZ GUAYACUNDO","INSTRUCTOR (A)","DPTO PROMO Y BIENESTAR INSTITU","OK","NP",30,"A2","NA","NA"]
[53064446,"INGRID YANETH RICO GOMEZ","INSTRUCTOR (A)","DPTO PROMO Y BIENESTAR INSTITU","OK","NP",41,"A2","NA","NA"]
[1049606147,"INGRID TATIANA MORENO RIVERA","INSTRUCTOR (A)","DPTO PROMO Y BIENESTAR INSTITU","OK","NP",21,"A1","NA","NA"]
[1049625805,"DIANA MILENA GARCIA PULIDO","PROFESIONAL SOPORTE","DPTO PROMO Y BIENESTAR INSTITU","OK","A2",33,"A2","SAME LEVEL","NA"]
[1049627598,"CRISTIAN LEONARDO CEPEDA BARAJAS","INSTRUCTOR (A)","DPTO PROMO Y BIENESTAR INSTITU","OK","A1",29,"A2","LEVEL UP","NA"]
[1049627977,"DAYANE ELIANA FAGUA CORONADO","INSTRUCTOR (A)","DPTO PROMO Y BIENESTAR INSTITU","OK","NP",24,"A1",{"$f":"+IF(F247=\"NP\",\"NA\",IF(F247=H247,\"SAME LEVEL\",0))","v":"NA"},"NA"]
[1049628564,"JUAN SEBASTIAN ROJAS FLECHAS","INSTRUCTOR (A)","DPTO PROMO Y BIENESTAR INSTITU","OK","NP",49,"A2+","NA","NA"]
[1049633821,"MAYERSY PATRICIA PARADA CANO","INSTRUCTOR (A)","DPTO PROMO Y BIENESTAR INSTITU","OK","A2",31,"A2","SAME LEVEL","NA"]
[1049634124,"BRANDON YESID PARADA FONSECA","INSTRUCTOR (A)","DPTO PROMO Y BIENESTAR INSTITU","OK","NP",34,"A2","NA","NA"]
[1049634320,"MAYNLEE XIOMARA PINEDA ROMERO","INSTRUCTOR (A)","DPTO PROMO Y BIENESTAR INSTITU","OK","A2+",49,"A2+","SAME LEVEL","NA"]
[1049634763,"JOHANA ANDREA TORRES MARTINEZ","INSTRUCTOR (A)","DPTO PROMO Y BIENESTAR INSTITU","OK","A2",29,"A2","SAME LEVEL","NA"]
[1049643070,"JAIR SMITH MARQUEZ MARTIN","INSTRUCTOR (A)","DPTO PROMO Y BIENESTAR INSTITU","OK","NP",69,"B1","NA","NA"]
[1053584446,"MABEL ANDREA CUBIDES HERNANDEZ","INSTRUCTOR (A)","DPTO PROMO Y BIENESTAR INSTITU","OK","A1",24,"A1","SAME LEVEL","NA"]
[1054800232,"ADRIANA CAROLINA MORENO BOHORQUEZ","INSTRUCTOR (A)","DPTO PROMO Y BIENESTAR INSTITU","OK","A2",21,"A1","LEVEL DOWN","NA"]
[1056957207,"LINA PAOLA ABRIL FARFAN","INSTRUCTOR (A)","DPTO PROMO Y BIENESTAR INSTITU","OK","A1",27,"A2","LEVEL UP","NA"]
[1057587753,"HEIDY XIOMERI TORRES MARTINEZ","INSTRUCTOR (A)","DPTO PROMO Y BIENESTAR INSTITU","OK","A2",23,"A1","LEVEL DOWN","NA"]
[33377442,"MARIA ESPERANZA APERADOR TOCARRUNCHO","AUXILIAR ENFERMERIA","DPTO PROMO Y BIENESTAR INSTITU","OK","NP",29,"A2",{"$f":"+IF(F258=\"NP\",\"NA\",IF(F258=H258,\"SAME LEVEL\",0))","v":"NA"},"NA"]
[40041502,"ETNA YOVANA COTRINO BUITRAGO","COORDINADOR (A)","DPTO PROMO Y BIENESTAR INSTITU","OK","NP",23,"A1",{"$f":"+IF(F259=\"NP\",\"NA\",IF(F259=H259,\"SAME LEVEL\",0))","v":"NA"},"NA"]
[40042874,"MAGDA LUCIA NAJAR ZAMBRANO","AUXILIAR ENFERMERIA","DPTO PROMO Y BIENESTAR INSTITU","OK","A2","NP","NP","NA","NA"]
[79913337,"OSCAR LEONARDO DIAZ DIAZ","COORDINADOR (A)","DPTO PROMO Y BIENESTAR INSTITU","OK","NP",21,"A1",{"$f":"+IF(F261=\"NP\",\"NA\",IF(F261=H261,\"SAME LEVEL\",0))","v":"NA"},"NA"]
[1049622093,"EDWAR FELIPE GONZALEZ JIMENEZ","AUXILIAR ENFERMERIA","DPTO PROMO Y BIENESTAR INSTITU","OK","NP",33,"A2",{"$f":"+IF(F262=\"NP\",\"NA\",IF(F262=H262,\"SAME LEVEL\",0))","v":"NA"},"NA"]
[1049640129,"MARCELA ALEJANDRA CALDERON RODRIGUEZ","MEDICO","DPTO PROMO Y BIENESTAR INSTITU","OK","B1",63,"B1",{"$f":"+IF(F263=\"NP\",\"NA\",IF(F263=H263,\"SAME LEVEL\",0))","v":"SAME LEVEL"},"NA"]
[1049642439,"LAURA ESTEFANIA ZAMUDIO SISA","PROFESIONAL SOPORTE","DPTO PROMO Y BIENESTAR INSTITU","OK","NP",43,"A2",{"$f":"+IF(F264=\"NP\",\"NA\",IF(F264=H264,\"SAME LEVEL\",0))","v":"NA"},"NA"]
[1049646844,"LAURA CAMILA RAMIREZ ORTIZ","PROFESIONAL SOPORTE","DPTO PROMO Y BIENESTAR INSTITU","OK","A2+","NP","NP","NA","NA"]
[1049650152,"LAURA JULIANA DIAZ MARTINEZ","PROFESIONAL SOPORTE","DPTO PROMO Y BIENESTAR INSTITU","OK","NP",27,"A2",{"$f":"+IF(F266=\"NP\",\"NA\",IF(F266=H266,\"SAME LEVEL\",0))","v":"NA"},"NA"]
[1049650887,"LINA XIMENA ORTEGA BUSTOS","PROFESIONAL SOPORTE","DPTO PROMO Y BIENESTAR INSTITU","OK","NP",30,"A2",{"$f":"+IF(F267=\"NP\",\"NA\",IF(F267=H267,\"SAME LEVEL\",0))","v":"NA"},"NA"]
[1054120811,"CARLOS EDUARDO NIETO SAENZ","AUXILIAR ENFERMERIA","DPTO PROMO Y BIENESTAR INSTITU","OK","NP",29,"A2",{"$f":"+IF(F268=\"NP\",\"NA\",IF(F268=H268,\"SAME LEVEL\",0))","v":"NA"},"NA"]
[1051211037,"CARMEN ELISA SUSPES TOCARRUNCHO","AUXILIAR","DPTO PROMO Y BIENESTAR INSTITU","OK","NP",26,"A2",{"$f":"+IF(F269=\"NP\",\"NA\",IF(F269=H269,\"SAME LEVEL\",0))","v":"NA"},"NA"]
[1049645266,"GUSTAVO ANDRES ORTEGA MORALES","PROFESIONAL SOPORTE","DPTO PROMO Y BIENESTAR INSTITU","OK","A1",26,"A2","LEVEL UP","NA"]
[80051012,"RAFAEL ANDRES DIAZ MOYA","DIRECTOR (A)","DPTO PROMO Y BIENESTAR INSTITU","OK","NP","NP","NP",{"$f":"+IF(F271=\"NP\",\"NA\",IF(F271=H271,\"SAME LEVEL\",0))","v":"NA"},"NA"]
[91080448,"DAVID RICARDO GIL LEGUIZAMON","COORDINADOR (A)","DPTO PROMO Y BIENESTAR INSTITU","OK","A1",46,"A2+","LEVEL UP","NA"]
[7178822,"RODOLFO ARMANDO OCHOA TORRES","INSTRUCTOR (A)","DPTO PROMO Y BIENESTAR INSTITU","OK","NP",71,"B1",{"$f":"+IF(F273=\"NP\",\"NA\",IF(F273=H273,\"SAME LEVEL\",0))","v":"NA"},"NA"]
[40024117,"SONIA NAYIVE NOVOA VARGAS","AUXILIAR","RECTORIA","OK","NP",47,"A2+","NA","NA"]
[1049614347,"YIMMY ALEXANDER BECERRA RODRIGUEZ","CONDUCTOR","RECTORIA","OK","NP","NP","NP","NA","NA"]
[1049622066,"YANILA ZULEY REYES CARDENAS","PROFESIONAL SOPORTE","RECTORIA","OK","NP",13,"A1","NA","NA"]
[23284794,"OLGA CECILIA MALAVER ECHEVERRIA","AUXILIAR","SECRETARIA GENERAL","OK","NP","NP","NP","NA","NA"]
[85441905,"ANTHONY NUMA MARIN","SECRETARIO (A) GENERAL","SECRETARIA GENERAL","OK","NP","NP","NP","NA","NA"]
[4298171,"ALEXANDER TORO CRUZ","DIRECTOR (A)","UNID DESARROLLO INTEGRAL ESTUD","OK","A1",30,"A2","LEVEL UP","NA"]
[1049612487,"LUIS EDUARDO PINA JIMENEZ","PROFESIONAL SOPORTE","UNID DESARROLLO INTEGRAL ESTUD","OK","A2",36,"A2",{"$f":"+IF(F280=\"NP\",\"NA\",IF(F280=H280,\"SAME LEVEL\",0))","v":"SAME LEVEL"},"NA"]
[1049617326,"MARIA MONICA SAENZ CORTES","AUXILIAR","UNID DESARROLLO INTEGRAL ESTUD","OK","A1",23,"A1",{"$f":"+IF(F281=\"NP\",\"NA\",IF(F281=H281,\"SAME LEVEL\",0))","v":"SAME LEVEL"},"NA"]
[7165159,"LUIS FREDY SOSA QUINTERO","DIRECTOR (A)","UNID GES INTEG DE CALIDAD UNIV","OK","NP",23,"A1",{"$f":"+IF(F282=\"NP\",\"NA\",IF(F282=H282,\"SAME LEVEL\",0))","v":"NA"},"NA"]
[40038656,"JANNETH RINCON HERNANDEZ","PROFESIONAL SOPORTE","UNID GES INTEG DE CALIDAD UNIV","OK","NP","NP","NP",{"$f":"+IF(F283=\"NP\",\"NA\",IF(F283=H283,\"SAME LEVEL\",0))","v":"NA"},"NA"]
[40048651,"KAREN YESENIA VEGA","AUXILIAR","UNID GES INTEG DE CALIDAD UNIV","OK","A2",23,"A1","LEVEL DOWN","NA"]
[1049655922,"ZULMA STEFFANY PACACIRA CORTES","PROFESIONAL SOPORTE","UNID GES INTEG DE CALIDAD UNIV","OK","NP",39,"A2",{"$f":"+IF(F285=\"NP\",\"NA\",IF(F285=H285,\"SAME LEVEL\",0))","v":"NA"},"NA"]
[4219126,"WILLIAM ANDRES ROJAS RUIZ","PROFESIONAL SOPORTE","UNIDAD DE ANALISIS DE MERCADEO","OK","NP",86,"B2",{"$f":"+IF(F286=\"NP\",\"NA\",IF(F286=H286,\"SAME LEVEL\",0))","v":"NA"},"NA"]
[1010061109,"DUBAN ANTONIO GRANADOS GALINDO","AUXILIAR","UNIDAD DE ANALISIS DE MERCADEO","OK","NP","NP","NP",{"$f":"+IF(F287=\"NP\",\"NA\",IF(F287=H287,\"SAME LEVEL\",0))","v":"NA"},"NA"]
[1049607848,"ALEJANDRA SANCHEZ GONZALEZ","DIRECTOR (A)","UNIDAD DE ANALISIS DE MERCADEO","OK","A2",40,"A2",{"$f":"+IF(F288=\"NP\",\"NA\",IF(F288=H288,\"SAME LEVEL\",0))","v":"SAME LEVEL"},"NA"]
[1002693010,"WILSON FERNANDO GIL FIRACATIVE","PROFESIONAL SOPORTE","UNIDAD DE DESARROLLO CURRICULA","OK","NP",39,"A2",{"$f":"+IF(F289=\"NP\",\"NA\",IF(F289=H289,\"SAME LEVEL\",0))","v":"NA"},"NA"]
[1049612731,"LEYDY DAYAN AVENDANO CALDAS","PROFESIONAL SOPORTE","UNIDAD DE DESARROLLO CURRICULA","OK","A2",24,"A1","LEVEL DOWN","NA"]
[1049625679,"SANDRA LIZETH PARRA CRUZ","DIRECTOR (A)","UNIDAD DE DESARROLLO CURRICULA","OK","NP",39,"A2",{"$f":"+IF(F291=\"NP\",\"NA\",IF(F291=H291,\"SAME LEVEL\",0))","v":"NA"},"NA"]
[1049635601,"SANTIAGO ADRIAN ALVAREZ BUITRAGO","AUXILIAR","UNIDAD DE DESARROLLO CURRICULA","OK","NP",27,"A2",{"$f":"+IF(F292=\"NP\",\"NA\",IF(F292=H292,\"SAME LEVEL\",0))","v":"NA"},"NA"]
[51876028,"LILIANA VICTORIA PEREA AMAYA","AUXILIAR","VICERR ADMINISTRATIVA Y FINANC","OK","A1","NP","NP","NA","NA"]
[40030732,"MARIA CRISTINA CASTRO RODRIGUEZ","AUXILIAR","VICERRECTORIA ACADEMICA GENERA","OK","NP","NP","NP",{"$f":"+IF(F294=\"NP\",\"NA\",IF(F294=H294,\"SAME LEVEL\",0))","v":"NA"},"NA"]
[1057892283,"MARIA DEL CARMEN CHACON MARTINEZ","PROFESIONAL SOPORTE","DIVISIÓN DE CIENCIAS SOCIALES","OK","NP",26,"A2",{"$f":"+IF(F295=\"NP\",\"NA\",IF(F295=H295,\"SAME LEVEL\",0))","v":"NA"},"NA"]
[14395338,"CARLOS EDUARDO ARTEAGA RODRIGUEZ","DOCENTE","LICEN ESPA Y LEN EXT ING Y FRA","OK","NP",39,"A2","NA","NA"]
[40032659,"GLADIS LEONOR ARIAS RODRIGUEZ","DIRECTOR (A) ACADEMICO (A)","LICEN ESPA Y LEN EXT ING Y FRA","OK","NP","NP","NP","NA","NA"]
[40045967,"ELIANA EDITH ROBERTO FLOREZ","DOCENTE","LICEN ESPA Y LEN EXT ING Y FRA","OK","NP","NP","B2","NA","Certificado B2 - IELTS 2020"]
[46456514,"GINA CAROLINA BRIJALDO OLARTE","DOCENTE","LICEN ESPA Y LEN EXT ING Y FRA","OK","NP",71,"B1","NA","Certificado C1 - ITEP 2020"]
[74185056,"LUIS ANTONIO MORENO PEREZ","DOCENTE","LICEN ESPA Y LEN EXT ING Y FRA","OK","NP","NP","NP","NA","NA"]
[80901635,"WILLIAM FABIAN SANCHEZ MOLINA","DOCENTE","LICEN ESPA Y LEN EXT ING Y FRA","OK","NP","NP","NP","NA","NA"]
[1049621385,"GILMA JOHANA CUERVO FONSECA","DOCENTE","LICEN ESPA Y LEN EXT ING Y FRA","OK","NP","NP","C1","NA","Certificado C1 - ITEP 2020"]
[1053606519,"LEIDY MARCELA CHACON VARGAS","DOCENTE","LICEN ESPA Y LEN EXT ING Y FRA","OK","NP","NP","NP","NA","NA"]
[1056800128,"LEIDY PAOLA APONTE NOVOA","DOCENTE","LICEN ESPA Y LEN EXT ING Y FRA","OK","NP","NP","NP","NA","NA"]
[1049628527,"LAURA VIVIANA RUBIO PACHECO","COORDINADOR (A)","MAESTRIA EN PEDAGOGIA","OK","A2+",26,"A2","LEVEL DOWN","NA"]
[7186892,"SERGIO ANDRES TIBADUIZA ALVARADO","DOCENTE","PREGRADO DISEÑO DE INTERACCION","OK","NP",59,"A2+",{"$f":"+IF(F306=\"NP\",\"NA\",IF(F306=H306,\"SAME LEVEL\",0))","v":"NA"},"NA"]
[7188455,"CARLOS EDUARDO PAREDES MENDEZ","DOCENTE","PREGRADO DISEÑO DE INTERACCION","OK","NP",36,"A2",{"$f":"+IF(F307=\"NP\",\"NA\",IF(F307=H307,\"SAME LEVEL\",0))","v":"NA"},"NA"]
[40045535,"PAOLA ANDREA CRUZ YOMAYUSA","DOCENTE","PREGRADO DISEÑO DE INTERACCION","OK","A2",36,"A2",{"$f":"+IF(F308=\"NP\",\"NA\",IF(F308=H308,\"SAME LEVEL\",0))","v":"SAME LEVEL"},"NA"]
[46671623,"SHIRLEY ANDREA OVALLE BARRETO","DECANO (A)","PREGRADO DISEÑO DE INTERACCION","OK","NP","NP","NP",{"$f":"+IF(F309=\"NP\",\"NA\",IF(F309=H309,\"SAME LEVEL\",0))","v":"NA"},"NA"]
[74375269,"ROMEL ANDRES FLECHAS GARCIA","DOCENTE","PREGRADO DISEÑO DE INTERACCION","OK","A1","NP","NP","NA","NA"]
[1049634538,"JULIAN SANTIAGO DELGADILLO APONTE","DOCENTE","PREGRADO DISEÑO DE INTERACCION","OK","NP","NP","NP",{"$f":"+IF(F311=\"NP\",\"NA\",IF(F311=H311,\"SAME LEVEL\",0))","v":"NA"},"NA"]
[7164736,"OSCAR ALEJANDRO BERNAL CARO","SECRETARIO (A) DE DIVISION","DIVISION CIENC ADM ECO Y CONTA","OK","NP",23,"A1","NA","NA"]
[7183686,"JHON DAVID SCHUHAYRE VANEGAS","PROFESIONAL SOPORTE","DIVISION CIENC ADM ECO Y CONTA","OK","A1",23,"A1","SAME LEVEL","NA"]
[7174658,"DIEGO ALBERTO WAKED ESQUIVEL","DIRECTOR (A) ACADEMICO (A)","DIVISION CIENC ADM ECO Y CONTA","OK","NP",54,"A2+","NA","NA"]
[6761660,"HUGOBERTO SANCHEZ SANCHEZ","DOCENTE","PRE ADMINISTRACION DE EMPRESAS","OK","A1",23,"A1","SAME LEVEL","NA"]
[6774229,"CARLOS ORLANDO INFANTE MORENO","DOCENTE","PRE ADMINISTRACION DE EMPRESAS","OK","A2+",44,"A2+","SAME LEVEL","NA"]
[7165031,"RUBEN DARIO MONROY BECERRA","DOCENTE","PRE ADMINISTRACION DE EMPRESAS","OK","A1",39,"A2","LEVEL UP","NA"]
[7170595,"FERNANDO MIGUEL MUNOZ BUITRAGO","DOCENTE","PRE ADMINISTRACION DE EMPRESAS","OK","NP","NP","NP",{"$f":"+IF(F318=\"NP\",\"NA\",IF(F318=H318,\"SAME LEVEL\",0))","v":"NA"},"NA"]
[20577459,"LUZ DARY CORTES FORERO","PROFESIONAL SOPORTE","PRE ADMINISTRACION DE EMPRESAS","OK","NP",26,"A2",{"$f":"+IF(F319=\"NP\",\"NA\",IF(F319=H319,\"SAME LEVEL\",0))","v":"NA"},"NA"]
[33368202,"CLAUDIA PATRICIA PEREZ GONZALEZ","PROFESIONAL SOPORTE","PRE ADMINISTRACION DE EMPRESAS","OK","NP",11,"A1",{"$f":"+IF(F320=\"NP\",\"NA\",IF(F320=H320,\"SAME LEVEL\",0))","v":"NA"},"NA"]
[37559736,"ANA MILENA GARCIA MOGOLLON","DOCENTE","PRE ADMINISTRACION DE EMPRESAS","OK","A2",60,"A2+","LEVEL UP","NA"]
[40033657,"ALBA ROCIO ROBLES GONZALEZ","DOCENTE","PRE ADMINISTRACION DE EMPRESAS","OK","A1",30,"A2","LEVEL UP","NA"]
[46661636,"MARIA INES ALVAREZ BURGOS","DOCENTE","PRE ADMINISTRACION DE EMPRESAS","OK","NP","NP","NP",{"$f":"+IF(F323=\"NP\",\"NA\",IF(F323=H323,\"SAME LEVEL\",0))","v":"NA"},"NA"]
[52153406,"NANCY PATRICIA GARCIA PACHECO","DOCENTE","PRE ADMINISTRACION DE EMPRESAS","OK","A1",53,"A2+","LEVEL UP","NA"]
[74187743,"HUMBERTO ALEJANDRO ROSALES VALBUENA","DECANO (A)","PRE ADMINISTRACION DE EMPRESAS","OK","NP",31,"A2",{"$f":"+IF(F325=\"NP\",\"NA\",IF(F325=H325,\"SAME LEVEL\",0))","v":"NA"},"NA"]
[1049605123,"DEISY LORENA BARRETO LOPEZ","DOCENTE","PRE ADMINISTRACION DE EMPRESAS","OK","A2",37,"A2",{"$f":"+IF(F326=\"NP\",\"NA\",IF(F326=H326,\"SAME LEVEL\",0))","v":"SAME LEVEL"},"NA"]
[1049628191,"MAURICIO ALEJANDRO JARRO SISA","DOCENTE","PRE ADMINISTRACION DE EMPRESAS","OK","A2+",43,"A2","LEVEL DOWN","NA"]
[1049640667,"YEISY LORENA VARGAS FLOREZ","AUXILIAR","PRE ADMINISTRACION DE EMPRESAS","OK","NP",30,"A2",{"$f":"+IF(F328=\"NP\",\"NA\",IF(F328=H328,\"SAME LEVEL\",0))","v":"NA"},"NA"]
[1057411524,"LIZETH VIVIANA LESMES ORTIZ","DOCENTE","PRE ADMINISTRACION DE EMPRESAS","OK","A2","NP","NP","NA","NA"]
[1057579372,"EDISON ANDRES PRECIADO TRUJILLO","DOCENTE","PRE ADMINISTRACION DE EMPRESAS","OK","A2+",54,"A2+",{"$f":"+IF(F330=\"NP\",\"NA\",IF(F330=H330,\"SAME LEVEL\",0))","v":"SAME LEVEL"},"NA"]
[1098707235,"ANYINSAM DANIEL BARRERA MONTANEZ","DOCENTE","PRE ADMINISTRACION DE EMPRESAS","OK","A2+",59,"A2+",{"$f":"+IF(F331=\"NP\",\"NA\",IF(F331=H331,\"SAME LEVEL\",0))","v":"SAME LEVEL"},"NA"]
[40033172,"ANGELA MARIA RODRIGUEZ ORDUZ","DOCENTE","PRE ADMINISTRACION DE EMPRESAS","OK","A1",23,"A1",{"$f":"+IF(F332=\"NP\",\"NA\",IF(F332=H332,\"SAME LEVEL\",0))","v":"SAME LEVEL"},"NA"]
[1052358270,"JEVIS YAMYD CARO PEDREROS","DOCENTE","PRE ADMINISTRACION DE EMPRESAS","OK","A2",33,"A2",{"$f":"+IF(F333=\"NP\",\"NA\",IF(F333=H333,\"SAME LEVEL\",0))","v":"SAME LEVEL"},"NA"]
[7175199,"VICTOR MANUEL ARCOS QUINTERO","DOCENTE","PREGRADO CONTADURIA PUBLICA","OK","NP",30,"A2",{"$f":"+IF(F334=\"NP\",\"NA\",IF(F334=H334,\"SAME LEVEL\",0))","v":"NA"},"NA"]
[7187793,"RAFAEL LEONARDO ROJAS AZULA","DOCENTE","PREGRADO CONTADURIA PUBLICA","OK","A1","NP","NP","NA","NA"]
[40023568,"NANCY STELLA AYALA JOYA","DOCENTE","PREGRADO CONTADURIA PUBLICA","OK","A1",27,"A2","LEVEL UP","NA"]
[40027993,"LURI SUAREZ PINEDA","DOCENTE","PREGRADO CONTADURIA PUBLICA","OK","A2",39,"A2",{"$f":"+IF(F337=\"NP\",\"NA\",IF(F337=H337,\"SAME LEVEL\",0))","v":"SAME LEVEL"},"NA"]
[40039439,"ANGELICA YULIETH CRUZ YOMAYUZA","DOCENTE","PREGRADO CONTADURIA PUBLICA","OK","A1",19,"A1","SAME LEVEL","NA"]
[40044343,"ENID MARGARET OVALLE SALAZAR","DOCENTE","PREGRADO CONTADURIA PUBLICA","OK","NP",21,"A1","NA","NA"]
[52181125,"ELVIA PILAR RODRIGUEZ CELY","DECANO (A)","PREGRADO CONTADURIA PUBLICA","OK","NP",33,"A2","NA","NA"]
[1049608814,"LADY CAROLINA HERRERA PARRA","DOCENTE","PREGRADO CONTADURIA PUBLICA","OK","A2",30,"A2","SAME LEVEL","NA"]
[1049630030,"ERIKA PAOLA RIOS GIL","PROFESIONAL SOPORTE","PREGRADO CONTADURIA PUBLICA","OK","NP",27,"A2","NA","NA"]
[1074136679,"DARCY YURANI HERNANDEZ GONZALEZ","AUXILIAR","PREGRADO CONTADURIA PUBLICA","OK","NP",37,"A2","NA","NA"]
[7179402,"CAMILO ANDRES CORREDOR CASTILLA","DOCENTE","PREGRADO CONTADURIA PUBLICA","OK","A1",34,"A2","LEVEL UP","NA"]
[6767951,"JOHN JAIRO MARTINEZ ALVAREZ","DOCENTE","PREGRADO NEGOCIOS INTERNACIONA","OK","A2",33,"A2",{"$f":"+IF(F345=\"NP\",\"NA\",IF(F345=H345,\"SAME LEVEL\",0))","v":"SAME LEVEL"},"NA"]
[7161387,"ERNESTO SANDOVAL ORTEGA","DOCENTE","PREGRADO NEGOCIOS INTERNACIONA","OK","A2",24,"A1","LEVEL DOWN","NA"]
[7184465,"JOSE ALEXANDER CELY RAMIREZ","DOCENTE","PREGRADO NEGOCIOS INTERNACIONA","OK","NP",33,"A2",{"$f":"+IF(F347=\"NP\",\"NA\",IF(F347=H347,\"SAME LEVEL\",0))","v":"NA"},"NA"]
[7187017,"CAMILO ANDRES IBARRA SANCHEZ","DOCENTE","PREGRADO NEGOCIOS INTERNACIONA","OK","NP","NP","NP",{"$f":"+IF(F348=\"NP\",\"NA\",IF(F348=H348,\"SAME LEVEL\",0))","v":"NA"},"NA"]
[33378571,"ESPERANZA DIAZ CASALLAS","DOCENTE","PREGRADO NEGOCIOS INTERNACIONA","OK","A2",34,"A2",{"$f":"+IF(F349=\"NP\",\"NA\",IF(F349=H349,\"SAME LEVEL\",0))","v":"SAME LEVEL"},"NA"]
[40023997,"ELIZABETH MALAGON SAENZ","DOCENTE","PREGRADO NEGOCIOS INTERNACIONA","OK","A1",27,"A2","LEVEL UP","NA"]
[40045507,"GLORIA STELLA ACUNA DAZA","DOCENTE","PREGRADO NEGOCIOS INTERNACIONA","OK","A2",29,"A2",{"$f":"+IF(F351=\"NP\",\"NA\",IF(F351=H351,\"SAME LEVEL\",0))","v":"SAME LEVEL"},"NA"]
[40049952,"EIMMY LILIANA RODRIGUEZ MORENO","DOCENTE","PREGRADO NEGOCIOS INTERNACIONA","OK","B1",73,"B1",{"$f":"+IF(F352=\"NP\",\"NA\",IF(F352=H352,\"SAME LEVEL\",0))","v":"SAME LEVEL"},"NA"]
[1019076455,"WILLIAM DAVID CHAVARRO POLO","DOCENTE","PREGRADO NEGOCIOS INTERNACIONA","OK","NP","NP","NP",{"$f":"+IF(F353=\"NP\",\"NA\",IF(F353=H353,\"SAME LEVEL\",0))","v":"NA"},"NA"]
[1019090120,"HECTOR YESID GARZON PRIETO","DOCENTE","PREGRADO NEGOCIOS INTERNACIONA","OK","NP","NP","NP",{"$f":"+IF(F354=\"NP\",\"NA\",IF(F354=H354,\"SAME LEVEL\",0))","v":"NA"},"NA"]
[1026290781,"DAVID STEVEN AGUDELO GUTIERREZ","DOCENTE","PREGRADO NEGOCIOS INTERNACIONA","OK","A2+",41,"A2","LEVEL DOWN","NA"]
[1049603221,"ANDREA CAROLINA JIMENEZ MEDINA","DOCENTE","PREGRADO NEGOCIOS INTERNACIONA","OK","NP",73,"B1",{"$f":"+IF(F356=\"NP\",\"NA\",IF(F356=H356,\"SAME LEVEL\",0))","v":"NA"},"NA"]
[1049603506,"OSCAR IVAN SANCHEZ ALARCON","DOCENTE","PREGRADO NEGOCIOS INTERNACIONA","OK","B1",63,"B1","SAME LEVEL","NA"]
[1057598165,"DIANA KATHERINE PARRADO HERNANDEZ","DOCENTE","PREGRADO NEGOCIOS INTERNACIONA","OK","NP",26,"A2","NA","NA"]
[7182416,"SAMUEL ARMANDO SANCHEZ ABRIL","DOCENTE","PREGRADO NEGOCIOS INTERNACIONA","OK","A2",33,"A2","SAME LEVEL","NA"]
[80825529,"LEONARDO GUZMAN SANABRIA","DOCENTE","PREGRADO NEGOCIOS INTERNACIONA","OK","B1+",84,"B1+","SAME LEVEL","NA"]
[80762750,"RONY ALEXIS MOSCOSO ALDANA","DECANO (A)","PREGRADO NEGOCIOS INTERNACIONA","OK","NP","NP","NP","NA","NA"]
[7187367,"JOEL DARIO VEGA CRUZ","DIRECTOR (A) ACADEMICO (A)","DIVISION DE INGENIERIAS","OK","NP",24,"A1",{"$f":"+IF(F362=\"NP\",\"NA\",IF(F362=H362,\"SAME LEVEL\",0))","v":"NA"},"NA"]
[40049054,"SANDRA MILENA PAVA RINCON","PROFESIONAL SOPORTE","DIVISION DE INGENIERIAS","OK","A1",21,"A1",{"$f":"+IF(F363=\"NP\",\"NA\",IF(F363=H363,\"SAME LEVEL\",0))","v":"SAME LEVEL"},"NA"]
[1049633693,"LEIDY MARCELA CARO GUTIERREZ","PROFESIONAL SOPORTE","DIVISION DE INGENIERIAS","OK","A1",34,"A2","LEVEL UP","NA"]
[1049608842,"LAURA NATALIA GARAVITO RINCON","SECRETARIO (A) DE DIVISION","DIVISION DE INGENIERIAS","OK","NP",23,"A1",{"$f":"+IF(F365=\"NP\",\"NA\",IF(F365=H365,\"SAME LEVEL\",0))","v":"NA"},"NA"]
[7176153,"JULIAN ALBERTO MONSALVE PULIDO","DOCENTE","PRE INGENIERIA DE SISTEMAS","OK","NP","NP","NP",{"$f":"+IF(F366=\"NP\",\"NA\",IF(F366=H366,\"SAME LEVEL\",0))","v":"NA"},"NA"]
[37729226,"MARTHA SUSANA CONTRERAS ORTIZ","DOCENTE","PRE INGENIERIA DE SISTEMAS","OK","B1",80,"B1+","LEVEL UP","NA"]
[46670431,"LUZ HERMENCIA SANTAMARIA GRANADOS","DOCENTE","PRE INGENIERIA DE SISTEMAS","OK","NP","NP","NP",{"$f":"+IF(F368=\"NP\",\"NA\",IF(F368=H368,\"SAME LEVEL\",0))","v":"NA"},"NA"]
[73167775,"CARLOS ANDRES GUERRERO ALARCON","DOCENTE","PRE INGENIERIA DE SISTEMAS","OK","NP",54,"A2+",{"$f":"+IF(F369=\"NP\",\"NA\",IF(F369=H369,\"SAME LEVEL\",0))","v":"NA"},"Certificado B1 - APTIS 2022 "]
[79689006,"HENRY ALFONSO GUIO AVILA","DOCENTE","PRE INGENIERIA DE SISTEMAS","OK","A2+",61,"B1","LEVEL UP","NA"]
[1049602475,"IVAN FERNANDO FONSECA BARINAS","DOCENTE","PRE INGENIERIA DE SISTEMAS","OK","A2","NP","NP","NA","NA"]
[1049620615,"JORGE LEONARDO BARAJAS MENDIVELSO","DOCENTE","PRE INGENIERIA DE SISTEMAS","OK","NP",23,"A1",{"$f":"+IF(F372=\"NP\",\"NA\",IF(F372=H372,\"SAME LEVEL\",0))","v":"NA"},"NA"]
[1049646148,"DANIELA ALEJANDRA BECERRA MEJIA","PROFESIONAL SOPORTE","PRE INGENIERIA DE SISTEMAS","OK","NP",26,"A2","NA","NA"]
[1049654983,"HARVEY NICOLAS ECHAVARRIA ORTIZ","DOCENTE","PRE INGENIERIA DE SISTEMAS","OK","A2+",50,"A2+","SAME LEVEL","NA"]
[1049656808,"JUAN SEBASTIAN ULLOA PARRA","DOCENTE","PRE INGENIERIA DE SISTEMAS","OK","A2",30,"A2","SAME LEVEL","NA"]
[1056708614,"CRISTIAN VIDAL MOSSO COY","DOCENTE","PRE INGENIERIA DE SISTEMAS","OK","NP",21,"A1","NA","NA"]
[64582727,"LUZ ELENA GUTIERREZ LOPEZ","DECANO (A)","PRE INGENIERIA DE SISTEMAS","OK","NP",51,"A2+","NA","Certificado B1 - APTIS 2021"]
[7162722,"JUAN FRANCISCO MENDOZA MORENO","DOCENTE","PRE INGENIERIA DE SISTEMAS","OK","NP",54,"A2+","NA","NA"]
[6759288,"EDGAR FERNANDO PRIETO SANCHEZ","DOCENTE","PREGRADO ARQUITECTURA","OK","A1",16,"A1","SAME LEVEL","NA"]
[6760591,"MAURICIO WAKED MACHADO","DOCENTE","PREGRADO ARQUITECTURA","OK","NP",30,"A2","NA","NA"]
[6763366,"JUAN CARLOS MACHADO MONCAYO","DOCENTE","PREGRADO ARQUITECTURA","OK","A2",40,"A2","SAME LEVEL","NA"]
[6765345,"JAIRO MAURICIO MEDINA ALBA","DOCENTE","PREGRADO ARQUITECTURA","OK","A1",11,"A1","SAME LEVEL","NA"]
[6766752,"FERNANDO AUGUSTO TORRES BERNAL","DOCENTE","PREGRADO ARQUITECTURA","OK","A1",17,"A1","SAME LEVEL","NA"]
[7167066,"JAIRO EDILSO TORRES MARTINEZ","DOCENTE","PREGRADO ARQUITECTURA","OK","A1","NP","NP","NA","NA"]
[7167481,"CARLOS ALFREDO CASTRO BOHORQUEZ","DOCENTE","PREGRADO ARQUITECTURA","OK","A2",36,"A2",{"$f":"+IF(F385=\"NP\",\"NA\",IF(F385=H385,\"SAME LEVEL\",0))","v":"SAME LEVEL"},"NA"]
[7177916,"FELIPE ANDRES MUNOZ CARDENAS","DOCENTE","PREGRADO ARQUITECTURA","OK","B1",67,"B1",{"$f":"+IF(F386=\"NP\",\"NA\",IF(F386=H386,\"SAME LEVEL\",0))","v":"SAME LEVEL"},"NA"]
[7188095,"RUBEN DARIO CALIXTO MORALES","DOCENTE","PREGRADO ARQUITECTURA","OK","A2",23,"A1","LEVEL DOWN","NA"]
[19430865,"JOSE JOAQUIN MAYORGA ROA","DOCENTE","PREGRADO ARQUITECTURA","OK","A1",31,"A2","LEVEL UP","NA"]
[40024504,"MARIA ASTRID PEREZ MENDOZA","DOCENTE","PREGRADO ARQUITECTURA","OK","A1",27,"A2","LEVEL UP","NA"]
[40041917,"ANDREA GABRIELA CAMARGO PULIDO","DOCENTE","PREGRADO ARQUITECTURA","OK","A1","NP","NP","NA","NA"]
[40043794,"YENNIA ESPERANZA SIERRA CAMARGO","DOCENTE","PREGRADO ARQUITECTURA","OK","A1",29,"A2","LEVEL UP","NA"]
[40049214,"GINNA PAOLA CANO CASTRO","DOCENTE","PREGRADO ARQUITECTURA","OK","A1",23,"A1",{"$f":"+IF(F392=\"NP\",\"NA\",IF(F392=H392,\"SAME LEVEL\",0))","v":"SAME LEVEL"},"NA"]
[41772814,"ADRIANA PAULINA GIRALDO MELENDEZ","DOCENTE","PREGRADO ARQUITECTURA","OK","A1",23,"A1",{"$f":"+IF(F393=\"NP\",\"NA\",IF(F393=H393,\"SAME LEVEL\",0))","v":"SAME LEVEL"},"NA"]
[51994547,"LILIANA CORTES GARZON","DOCENTE","PREGRADO ARQUITECTURA","OK","A2","NP","NP","NA","NA"]
[1015409881,"ANDRES CAMILO GOMEZ AGUILAR","DOCENTE","PREGRADO ARQUITECTURA","OK","A1",31,"A2","LEVEL UP","NA"]
[1031143828,"JENNYFFER CLAVIJO MERCHAN","DOCENTE","PREGRADO ARQUITECTURA","OK","NP",39,"A2",{"$f":"+IF(F396=\"NP\",\"NA\",IF(F396=H396,\"SAME LEVEL\",0))","v":"NA"},"NA"]
[1033721941,"DIEGO ALEXANDER BUITRAGO RUIZ","DOCENTE","PREGRADO ARQUITECTURA","OK","B1+",77,"B1+",{"$f":"+IF(F397=\"NP\",\"NA\",IF(F397=H397,\"SAME LEVEL\",0))","v":"SAME LEVEL"},"Certificado C1 - TOEFL 2021"]
[1049613142,"LEIDY ISABEL LOPEZ RUIZ","DOCENTE","PREGRADO ARQUITECTURA","OK","B1",57,"A2+","LEVEL DOWN","NA"]
[1049615809,"LEIDY JOHANA PINEDA JUNCO","PROFESIONAL SOPORTE","PREGRADO ARQUITECTURA","OK","A1",26,"A2","LEVEL UP","NA"]
[1049617541,"HERNANDO GUTIERREZ RODRIGUEZ","DOCENTE","PREGRADO ARQUITECTURA","OK","A2",40,"A2",{"$f":"+IF(F400=\"NP\",\"NA\",IF(F400=H400,\"SAME LEVEL\",0))","v":"SAME LEVEL"},"NA"]
[1049622374,"JESSICA NATHALY MARTIN DIAZ","DECANO (A)","PREGRADO ARQUITECTURA","OK","NP",66,"B1",{"$f":"+IF(F401=\"NP\",\"NA\",IF(F401=H401,\"SAME LEVEL\",0))","v":"NA"},"NA"]
[1049629410,"CLAUDIA PATRICIA GONZALEZ PALACIOS","AUXILIAR","PREGRADO ARQUITECTURA","OK","NP",29,"A2",{"$f":"+IF(F402=\"NP\",\"NA\",IF(F402=H402,\"SAME LEVEL\",0))","v":"NA"},"NA"]
[1049633734,"DANIEL DAVID SANCHEZ QUINTANA","DOCENTE","PREGRADO ARQUITECTURA","OK","NP","NP","NP",{"$f":"+IF(F403=\"NP\",\"NA\",IF(F403=H403,\"SAME LEVEL\",0))","v":"NA"},"NA"]
[1049608109,"JEIMY ALEXANDRA REYES VARGAS","DOCENTE","PREGRADO ARQUITECTURA","OK","A2",39,"A2",{"$f":"+IF(F404=\"NP\",\"NA\",IF(F404=H404,\"SAME LEVEL\",0))","v":"SAME LEVEL"},"NA"]
[7182515,"MANUEL FERNANDO GAMBA RINCON","DOCENTE","PREGRADO ARQUITECTURA","OK","A2","NP","NP","NA","NA"]
[6764437,"GUILLERMO ANTONIO AGUILAR MOLINA","DOCENTE","PREGRADO ARQUITECTURA","OK","A1",30,"A2","LEVEL UP","NA"]
[79944880,"GERMAN DARIO RODRIGUEZ BOTERO","DOCENTE","PREGRADO ARQUITECTURA","OK","NP",31,"A2",{"$f":"+IF(F407=\"NP\",\"NA\",IF(F407=H407,\"SAME LEVEL\",0))","v":"NA"},"NA"]
[7160126,"NELSON RICARDO BARRETO CETINA","DOCENTE","PREGRADO ARQUITECTURA","OK","A1",17,"A1","SAME LEVEL","NA"]
[3181317,"RENAN FERNANDO JIMENEZ ESPINEL","DOCENTE","PREGRADO ARQUITECTURA","OK","A1",14,"A1","SAME LEVEL","NA"]
[9518166,"CARLOS ALBERTO MEDINA MORENO","DOCENTE","PREGRADO ARQUITECTURA","OK","A1",10,"A1","SAME LEVEL","NA"]
[666985,"SILVIA SARAID LARA ALVARADO","DOCENTE","PREGRADO ARQUITECTURA","OK","NP",41,"A2","NA","NA"]
[7170243,"HERNAN GUIO MALAVER","DOCENTE","PREGRADO ARQUITECTURA","OK","A1",23,"A1","SAME LEVEL","NA"]
[7178785,"LEONARDO ENRIQUE OSORIO SALAZAR","DOCENTE","PREGRADO ARQUITECTURA","OK","A1",27,"A2","LEVEL UP","NA"]
[40047802,"LINA MARCELA BENAVIDES SILVA","DOCENTE","PREGRADO ARQUITECTURA","OK","A1",21,"A1",{"$f":"+IF(F414=\"NP\",\"NA\",IF(F414=H414,\"SAME LEVEL\",0))","v":"SAME LEVEL"},"NA"]
[53106726,"DAYRA MILENA VARGAS ARDILA","DOCENTE","PREGRADO ARQUITECTURA","OK","A2","NP","NP","NA","NA"]
[1049652452,"ELISA MARIA AVELLANEDA DIAZ","DOCENTE","PREGRADO INGENIERIA AMBIENTAL","OK","A2",24,"A1","LEVEL DOWN","NA"]
[7163142,"HERNANDO AVELLA FORERO","DOCENTE","PREGRADO INGENIERIA AMBIENTAL","OK","A2",41,"A2",{"$f":"+IF(F417=\"NP\",\"NA\",IF(F417=H417,\"SAME LEVEL\",0))","v":"SAME LEVEL"},"NA"]
[52351443,"CLAUDIA ROCIO SUAREZ CASTILLO","DOCENTE","PREGRADO INGENIERIA AMBIENTAL","OK","A2",63,"B1","LEVEL UP","NA"]
[1049607386,"IVAN GUSTAVO PIRAZAN CUERVO","DOCENTE","PREGRADO INGENIERIA AMBIENTAL","OK","A1",33,"A2","LEVEL UP","NA"]
[1049627092,"CAMILO ANDRES ROJAS CRUZ","DOCENTE","PREGRADO INGENIERIA AMBIENTAL","OK","A2+",53,"A2+",{"$f":"+IF(F420=\"NP\",\"NA\",IF(F420=H420,\"SAME LEVEL\",0))","v":"SAME LEVEL"},"NA"]
[1049639750,"MARIA FERNANDA ARAQUE PENA","AUXILIAR","PREGRADO INGENIERIA AMBIENTAL","OK","NP",26,"A2","NA","NA"]
[1049642857,"SANTIAGO FELIPE MONTOYA RODRIGUEZ","PROFESIONAL SOPORTE","PREGRADO INGENIERIA AMBIENTAL","OK","NP",29,"A2","NA","NA"]
[1053341428,"YUDDY ALEJANDRA CASTRO ORTEGON","DOCENTE","PREGRADO INGENIERIA AMBIENTAL","OK","A2",39,"A2","SAME LEVEL","NA"]
[28559938,"LUZ ANGELA CUELLAR RODRIGUEZ","DECANO (A)","PREGRADO INGENIERIA AMBIENTAL","OK","NP",21,"A1","NA","NA"]
[52412124,"LINA PATRICIA VEGA GARZON","DOCENTE","PREGRADO INGENIERIA AMBIENTAL","OK","B2",86,"B2","SAME LEVEL","Certificado C1 - MET 2021"]
[1049606493,"DAVID EDUARDO APARICIO PLAZAS","DOCENTE","PREGRADO INGENIERIA AMBIENTAL","OK","NP",39,"A2","NA","NA"]
[6757890,"MIGUEL ANGEL TOLEDO CASTELLANOS","DOCENTE","PREGRADO INGENIERIA CIVIL","OK","A2","NP","NP","NA","NA"]
[6763356,"MANUEL ORLANDO HERNANDEZ RIVERA","DOCENTE","PREGRADO INGENIERIA CIVIL","OK","NP","NP","NP",{"$f":"+IF(F428=\"NP\",\"NA\",IF(F428=H428,\"SAME LEVEL\",0))","v":"NA"},"NA"]
[6773003,"ANGEL FRANCISCO DAZA PINZON","DOCENTE","PREGRADO INGENIERIA CIVIL","OK","A2",29,"A2",{"$f":"+IF(F429=\"NP\",\"NA\",IF(F429=H429,\"SAME LEVEL\",0))","v":"SAME LEVEL"},"NA"]
[7174901,"JUAN PABLO GONZALEZ GALVIS","DOCENTE","PREGRADO INGENIERIA CIVIL","OK","A2+",70,"B1","LEVEL UP","NA"]
[7175704,"JUAN RICARDO PEREZ CUERVO","DOCENTE","PREGRADO INGENIERIA CIVIL","OK","A2",43,"A2",{"$f":"+IF(F431=\"NP\",\"NA\",IF(F431=H431,\"SAME LEVEL\",0))","v":"SAME LEVEL"},"NA"]
[7176971,"CARLOS ANDRES CARO CAMARGO","DOCENTE","PREGRADO INGENIERIA CIVIL","OK","A2+",53,"A2+","SAME LEVEL","NA"]
[7221599,"JAVIER EDUARDO BECERRA BECERRA","DOCENTE","PREGRADO INGENIERIA CIVIL","OK","NP","NP","NP","NA","NA"]
[9397835,"HAROLD ALEXANDER ALVAREZ CASTANEDA","DOCENTE","PREGRADO INGENIERIA CIVIL","OK","A2",36,"A2","SAME LEVEL","NA"]
[19342467,"CARLOS ALBERTO ARIAS GALINDO","DOCENTE","PREGRADO INGENIERIA CIVIL","OK","NP",20,"A1","NA","NA"]
[40013778,"TERESA ESPITIA CARDENAS","DOCENTE","PREGRADO INGENIERIA CIVIL","OK","A1",14,"A1","SAME LEVEL","NA"]
[40044814,"SANDRA ELODIA OSPINA LOZANO","DOCENTE","PREGRADO INGENIERIA CIVIL","OK","A2+",54,"A2+","SAME LEVEL","NA"]
[46683246,"MARTHA SELANDRA CASALLAS SANABRIA","PROFESIONAL SOPORTE","PREGRADO INGENIERIA CIVIL","OK","A2+",29,"A2","LEVEL DOWN","NA"]
[1032436780,"ALVARO SAMUEL PEREZ PESCA","DOCENTE","PREGRADO INGENIERIA CIVIL","OK","B2",86,"B2",{"$f":"+IF(F439=\"NP\",\"NA\",IF(F439=H439,\"SAME LEVEL\",0))","v":"SAME LEVEL"},"NA"]
[1049603073,"MARTHA ISABEL MONROY LOPEZ","AUXILIAR","PREGRADO INGENIERIA CIVIL","OK","A2",24,"A1","LEVEL DOWN","NA"]
[1049612838,"JOSE ANTONIO SUAREZ PIRAZAN","DOCENTE","PREGRADO INGENIERIA CIVIL","OK","NP","NP","NP",{"$f":"+IF(F441=\"NP\",\"NA\",IF(F441=H441,\"SAME LEVEL\",0))","v":"NA"},"NA"]
[1049618124,"MONICA HELENA RODRIGUEZ MESA","DECANO (A)","PREGRADO INGENIERIA CIVIL","OK","A2+",60,"A2+",{"$f":"+IF(F442=\"NP\",\"NA\",IF(F442=H442,\"SAME LEVEL\",0))","v":"SAME LEVEL"},"NA"]
[1049640685,"ADRIANA ALEJANDRA HIGUERA GUTIERREZ","DOCENTE","PREGRADO INGENIERIA CIVIL","OK","B1",73,"B1",{"$f":"+IF(F443=\"NP\",\"NA\",IF(F443=H443,\"SAME LEVEL\",0))","v":"SAME LEVEL"},"NA"]
[1049641025,"LAURA YANETH GIL ALVARADO","DOCENTE","PREGRADO INGENIERIA CIVIL","OK","NP",87,"B2",{"$f":"+IF(F444=\"NP\",\"NA\",IF(F444=H444,\"SAME LEVEL\",0))","v":"NA"},"NA"]
[1049642565,"DIEGO EDUARDO JIMENEZ ROA","DOCENTE","PREGRADO INGENIERIA CIVIL","OK","NP",84,"B1+",{"$f":"+IF(F445=\"NP\",\"NA\",IF(F445=H445,\"SAME LEVEL\",0))","v":"NA"},"NA"]
[1053585317,"WILSON ENRIQUE AMAYA TEQUIA","DOCENTE","PREGRADO INGENIERIA CIVIL","OK","A1",43,"A2","LEVEL UP","NA"]
[1057584295,"EMILCEN LEMUS PINEDA","DOCENTE","PREGRADO INGENIERIA CIVIL","OK","B1",66,"B1+","LEVEL UP","NA"]
[1090365896,"NYDIA MARGARITA HABRAN ESTEBAN","DOCENTE","PREGRADO INGENIERIA CIVIL","OK","A2",51,"A2+","LEVEL UP","NA"]
[1136880903,"DIANA MARIA BELTRAN BELTRAN","DOCENTE","PREGRADO INGENIERIA CIVIL","OK","B1",80,"B1+","LEVEL UP","NA"]
[7177038,"NESTOR IVAN ROJAS GAMBA","DOCENTE","PREGRADO INGENIERIA CIVIL","OK","A2",29,"A2",{"$f":"+IF(F450=\"NP\",\"NA\",IF(F450=H450,\"SAME LEVEL\",0))","v":"SAME LEVEL"},"NA"]
[7168082,"DAVID GERONIMO SOLER GOMEZ","DOCENTE","PREGRADO INGENIERIA CIVIL","OK","A2",31,"A2",{"$f":"+IF(F451=\"NP\",\"NA\",IF(F451=H451,\"SAME LEVEL\",0))","v":"SAME LEVEL"},"NA"]
[7172708,"WILSON ALFREDO MEDINA SIERRA","DOCENTE","PREGRADO INGENIERIA CIVIL","OK","A2+",39,"A2","LEVEL DOWN","NA"]
[7175673,"MELQUISEDEC CORTES ZAMBRANO","DOCENTE","PREGRADO INGENIERIA CIVIL","OK","A2",57,"A2+","LEVEL UP","NA"]
[7177725,"GERMAN OSWALDO PARADA PEREZ","DOCENTE","PREGRADO INGENIERIA CIVIL","OK","A2",27,"A2",{"$f":"+IF(F454=\"NP\",\"NA\",IF(F454=H454,\"SAME LEVEL\",0))","v":"SAME LEVEL"},"NA"]
[7184349,"HECTOR MAURICIO SANCHEZ ABRIL","DOCENTE","PREGRADO INGENIERIA CIVIL","OK","NP",56,"A2+",{"$f":"+IF(F455=\"NP\",\"NA\",IF(F455=H455,\"SAME LEVEL\",0))","v":"NA"},"NA"]
[1049618165,"ANDRES FELIPE BERNAL VILLATE","DOCENTE","PREGRADO INGENIERIA CIVIL","OK","NP",36,"A2",{"$f":"+IF(F456=\"NP\",\"NA\",IF(F456=H456,\"SAME LEVEL\",0))","v":"NA"},"NA"]
[1049634812,"OSCAR DAVID ROJAS CELY","DOCENTE","PREGRADO INGENIERIA CIVIL","OK","NP",61,"B1",{"$f":"+IF(F457=\"NP\",\"NA\",IF(F457=H457,\"SAME LEVEL\",0))","v":"NA"},"NA"]
[1049647550,"KAREN DAYANA GONZALEZ ABRIL","PROFESIONAL SOPORTE","PREGRADO INGENIERIA CIVIL","OK","NP",23,"A1",{"$f":"+IF(F458=\"NP\",\"NA\",IF(F458=H458,\"SAME LEVEL\",0))","v":"NA"},"NA"]
[6771357,"JOSE RICARDO CASALLAS GUTIERREZ","DOCENTE","PREGRADO INGENIERIA ELECTRONIC","OK","B1","NP","NP","NA","NA"]
[6774100,"ADOLFO AVILA BARON","DOCENTE","PREGRADO INGENIERIA ELECTRONIC","OK","A2+","NP","NP","NA","NA"]
[7182608,"CAMILO ERNESTO PARDO BEAINY","DOCENTE","PREGRADO INGENIERIA ELECTRONIC","OK","NP","NP","C1",{"$f":"+IF(F461=\"NP\",\"NA\",IF(F461=H461,\"SAME LEVEL\",0))","v":"NA"},"Certificado C1 - APTIS 2021"]
[7184451,"CARLOS ALBERTO CARDONA COY","DOCENTE","PREGRADO INGENIERIA ELECTRONIC","OK","A2",44,"A2+","LEVEL UP","NA"]
[74184255,"WILLIAM FERNANDO ALVAREZ CASTANEDA","DOCENTE","PREGRADO INGENIERIA ELECTRONIC","OK","A1",27,"A2","LEVEL UP","NA"]
[74379190,"WILLIAM FABIAN CHAPARRO BECERRA","DECANO (A)","PREGRADO INGENIERIA ELECTRONIC","OK","NP","NP","C1",{"$f":"+IF(F464=\"NP\",\"NA\",IF(F464=H464,\"SAME LEVEL\",0))","v":"NA"},"Certificado C1 - APTIS 2021"]
[80187860,"CESAR MAURICIO GALARZA BOGOTA","DOCENTE","PREGRADO INGENIERIA ELECTRONIC","OK","A2+",51,"A2+",{"$f":"+IF(F465=\"NP\",\"NA\",IF(F465=H465,\"SAME LEVEL\",0))","v":"SAME LEVEL"},"NA"]
[1010144307,"YUDY LORENA AVILA NUMPAQUE","AUXILIAR","PREGRADO INGENIERIA ELECTRONIC","OK","NP",17,"A1",{"$f":"+IF(F466=\"NP\",\"NA\",IF(F466=H466,\"SAME LEVEL\",0))","v":"NA"},"NA"]
[1019011806,"EDGAR ANDRES GUTIERREZ CACERES","DOCENTE","PREGRADO INGENIERIA ELECTRONIC","OK","NP","NP","B1",{"$f":"+IF(F467=\"NP\",\"NA\",IF(F467=H467,\"SAME LEVEL\",0))","v":"NA"},"Certificado B1 - Linguaskill 2021"]
[1049609916,"PABLO ANDRES ALVAREZ CAMARGO","DOCENTE","PREGRADO INGENIERIA ELECTRONIC","OK","A2",44,"A2+","LEVEL UP","NA"]
[1056931277,"ELIANA MARCELA ACUNA BECERRA","PROFESIONAL SOPORTE","PREGRADO INGENIERIA ELECTRONIC","OK","NP",30,"A2",{"$f":"+IF(F469=\"NP\",\"NA\",IF(F469=H469,\"SAME LEVEL\",0))","v":"NA"},"NA"]
[1075656249,"ARNOLD FABIAN WIESNER HERNANDEZ","DOCENTE","PREGRADO INGENIERIA ELECTRONIC","OK","NP","NP","NP",{"$f":"+IF(F470=\"NP\",\"NA\",IF(F470=H470,\"SAME LEVEL\",0))","v":"NA"},"NA"]
[7180630,"JUAN CARLOS CHAPARRO ACUNA","DOCENTE","PREGRADO INGENIERIA INDUSTRIAL","OK","NP",24,"A1",{"$f":"+IF(F471=\"NP\",\"NA\",IF(F471=H471,\"SAME LEVEL\",0))","v":"NA"},"NA"]
[40039517,"MARTHA LILIANA CASTILLO MONROY","DOCENTE","PREGRADO INGENIERIA INDUSTRIAL","OK","A2",50,"A2+","LEVEL UP","NA"]
[46457808,"DIANA MIREYA AYALA VALDERRAMA","DOCENTE","PREGRADO INGENIERIA INDUSTRIAL","OK","A2",27,"A2",{"$f":"+IF(F473=\"NP\",\"NA\",IF(F473=H473,\"SAME LEVEL\",0))","v":"SAME LEVEL"},"NA"]
[51781476,"HEDID AHIXA DELGADO RIOS","DOCENTE","PREGRADO INGENIERIA INDUSTRIAL","OK","A1",29,"A2","LEVEL UP","NA"]
[74182760,"LUIS FELIPE CHAPARRO PARADA","DOCENTE","PREGRADO INGENIERIA INDUSTRIAL","OK","NP",23,"A1",{"$f":"+IF(F475=\"NP\",\"NA\",IF(F475=H475,\"SAME LEVEL\",0))","v":"NA"},"NA"]
[79851090,"CARLOS ALIRIO BELTRAN RODRIGUEZ","DECANO (A)","PREGRADO INGENIERIA INDUSTRIAL","OK","NP",29,"A2",{"$f":"+IF(F476=\"NP\",\"NA\",IF(F476=H476,\"SAME LEVEL\",0))","v":"NA"},"NA"]
[1015398367,"DANIEL MUNOZ ROJAS","DOCENTE","PREGRADO INGENIERIA INDUSTRIAL","OK","A2+","NP","NP","NA","NA"]
[1049629925,"JULIAN DAVID SILVA RODRIGUEZ","DOCENTE","PREGRADO INGENIERIA INDUSTRIAL","OK","A2",26,"A2",{"$f":"+IF(F478=\"NP\",\"NA\",IF(F478=H478,\"SAME LEVEL\",0))","v":"SAME LEVEL"},"NA"]
[1049642079,"CRISTIAN ALEJANDRO AGUILAR TOVAR","PROFESIONAL SOPORTE","PREGRADO INGENIERIA INDUSTRIAL","OK","NP",27,"A2",{"$f":"+IF(F479=\"NP\",\"NA\",IF(F479=H479,\"SAME LEVEL\",0))","v":"NA"},"NA"]
[1052387023,"MARIEN ROCIO BARRERA GOMEZ","DOCENTE","PREGRADO INGENIERIA INDUSTRIAL","OK","NP",54,"A2+",{"$f":"+IF(F480=\"NP\",\"NA\",IF(F480=H480,\"SAME LEVEL\",0))","v":"NA"},"NA"]
[1057571566,"CLAUDIA MARITZA JIMENEZ CAICEDO","DOCENTE","PREGRADO INGENIERIA INDUSTRIAL","OK","NP",59,"A2+",{"$f":"+IF(F481=\"NP\",\"NA\",IF(F481=H481,\"SAME LEVEL\",0))","v":"NA"},"NA"]
[1152184237,"CARLOS ANDRES QUIROZ CASTELLANOS","DOCENTE","PREGRADO INGENIERIA INDUSTRIAL","OK","A2+",53,"A2+",{"$f":"+IF(F482=\"NP\",\"NA\",IF(F482=H482,\"SAME LEVEL\",0))","v":"SAME LEVEL"},"NA"]
[6764277,"JOAQUIN ALBERTO MANCIPE SAAVEDRA","DOCENTE","PREGRADO INGENIERIA MECANICA","OK","A2","NP","NP","NA","NA"]
[6775059,"JUAN RODRIGO SALAMANCA SARMIENTO","DOCENTE","PREGRADO INGENIERIA MECANICA","OK","A2+",50,"A2+",{"$f":"+IF(F484=\"NP\",\"NA\",IF(F484=H484,\"SAME LEVEL\",0))","v":"SAME LEVEL"},"NA"]
[7161314,"ALONSO HERNANDEZ MOLANO","DOCENTE","PREGRADO INGENIERIA MECANICA","OK","A1",39,"A2","LEVEL UP","NA"]
[7163154,"CARLOS ALBERTO LEON MEDINA","DOCENTE","PREGRADO INGENIERIA MECANICA","OK","A2+",63,"B1","LEVEL UP","NA"]
[7163979,"LUIS FERNANDO ACOSTA JOYA","DOCENTE","PREGRADO INGENIERIA MECANICA","OK","A1",20,"A1",{"$f":"+IF(F487=\"NP\",\"NA\",IF(F487=H487,\"SAME LEVEL\",0))","v":"SAME LEVEL"},"NA"]
[7174097,"NELSON IVAN VILLAMIZAR CRUZ","DOCENTE","PREGRADO INGENIERIA MECANICA","OK","A2",29,"A2",{"$f":"+IF(F488=\"NP\",\"NA\",IF(F488=H488,\"SAME LEVEL\",0))","v":"SAME LEVEL"},"NA"]
[7186323,"WILLIAM FERNANDO LOPEZ CANDELA","DECANO (A)","PREGRADO INGENIERIA MECANICA","OK","A2+",54,"A2+",{"$f":"+IF(F489=\"NP\",\"NA\",IF(F489=H489,\"SAME LEVEL\",0))","v":"SAME LEVEL"},"NA"]
[7187129,"GERMAN ANDRES GUTIERREZ ARIAS","DOCENTE","PREGRADO INGENIERIA MECANICA","OK","A2+",66,"B1","LEVEL UP","NA"]
[7225532,"FABIAN LEONARDO HIGUERA SANCHEZ","DOCENTE","PREGRADO INGENIERIA MECANICA","OK","A1",27,"A2","LEVEL UP","NA"]
[40035076,"YENNY MARLEN GONZALEZ MANCILLA","DOCENTE","PREGRADO INGENIERIA MECANICA","OK","A2",51,"A2+","LEVEL UP","NA"]
[53073826,"YINA FAIZULLY QUINTERO GAMBOA","DOCENTE","PREGRADO INGENIERIA MECANICA","OK","A2",31,"A2",{"$f":"+IF(F493=\"NP\",\"NA\",IF(F493=H493,\"SAME LEVEL\",0))","v":"SAME LEVEL"},"NA"]
[88193069,"EDWIN BLASNILO RUA RAMIREZ","DOCENTE","PREGRADO INGENIERIA MECANICA","OK","NP","NP","NP","NA","NA"]
[91495305,"BOSSUET LEONARDO CELY GUEZGUAN","DOCENTE","PREGRADO INGENIERIA MECANICA","OK","B1",73,"B1","SAME LEVEL","NA"]
[1007388726,"JENNIFER SOFIA CRUZ CRISTANCHO","PROFESIONAL SOPORTE","PREGRADO INGENIERIA MECANICA","OK","NP",81,"B1+","NA","NA"]
[1032362640,"CARLOS ANDRES AGUIRRE RODRIGUEZ","DOCENTE","PREGRADO INGENIERIA MECANICA","OK","B1",69,"B1","SAME LEVEL","NA"]
[1049617372,"FERNANDO JIMENEZ DIAZ","DOCENTE","PREGRADO INGENIERIA MECANICA","OK","B1+",77,"B1+","SAME LEVEL","NA"]
[1049611225,"LINA ROCIO MOLINA AREVALO","AUXILIAR","PREGRADO INGENIERIA MECANICA","OK","A1","NP","NP","NA","NA"]
[7185493,"GIOVANNI ALCIDES MONGUI MERCHAN","SECRETARIO (A) DE DIVISION","DIVISION DE CIENC JURIDI Y POL","OK","A2+",37,"A2","LEVEL DOWN","NA"]
[52912688,"CATHERINE DEL PILAR DIAZ SANABRIA","DIRECTOR (A) ACADEMICO (A)","DIVISION DE CIENC JURIDI Y POL","OK","NP",29,"A2",{"$f":"+IF(F501=\"NP\",\"NA\",IF(F501=H501,\"SAME LEVEL\",0))","v":"NA"},"NA"]
[1049645633,"LEIDY JOHANA RAMOS PEDRAZA","PROFESIONAL SOPORTE","DIVISION DE CIENC JURIDI Y POL","OK","NP",31,"A2",{"$f":"+IF(F502=\"NP\",\"NA\",IF(F502=H502,\"SAME LEVEL\",0))","v":"NA"},"NA"]
[1054374580,"GISELLA FERNANDA MORENO GAMBA","AUXILIAR","DIVISION DE CIENC JURIDI Y POL","OK","NP","NP","NP",{"$f":"+IF(F503=\"NP\",\"NA\",IF(F503=H503,\"SAME LEVEL\",0))","v":"NA"},"NA"]
[79442676,"ALFONSO DAZA GONZALEZ","DIRECTOR (A)","DOCTORADO EN DERECHO PUBLICO","OK","NP","NP","NP",{"$f":"+IF(F504=\"NP\",\"NA\",IF(F504=H504,\"SAME LEVEL\",0))","v":"NA"},"NA"]
[1010172991,"ANDREA CAROLINA HERNANDEZ MEDINA","DOCENTE","PREGRADO DERECHO","OK","NP",61,"B1",{"$f":"+IF(F505=\"NP\",\"NA\",IF(F505=H505,\"SAME LEVEL\",0))","v":"NA"},"NA"]
[4118914,"JORGE ENRIQUE PATINO ROJAS","DOCENTE","PREGRADO DERECHO","OK","A2+","NP","NP","NA","NA"]
[4121430,"PEDRO ALFONSO SANCHEZ CUBIDES","DOCENTE","PREGRADO DERECHO","OK","A1","NP","NP","NA","NA"]
[6768532,"JORGE ALBERTO VALCARCEL GARCIA","DOCENTE","PREGRADO DERECHO","OK","A2",23,"A1","LEVEL DOWN","NA"]
[6776975,"MARTIN HERNANDEZ SANCHEZ","DOCENTE","PREGRADO DERECHO","OK","A1",23,"A1",{"$f":"+IF(F509=\"NP\",\"NA\",IF(F509=H509,\"SAME LEVEL\",0))","v":"SAME LEVEL"},"NA"]
[7162901,"LUIS ANTONIO BAYONA HERNANDEZ","DOCENTE","PREGRADO DERECHO","OK","A2",39,"A2",{"$f":"+IF(F510=\"NP\",\"NA\",IF(F510=H510,\"SAME LEVEL\",0))","v":"SAME LEVEL"},"NA"]
[7164015,"SIMON EDUARDO MARTINEZ ESCANDON","DOCENTE","PREGRADO DERECHO","OK","A2","NP","NP","NA","NA"]
[7168963,"ANDRES ALEJANDRO TORRES TELLEZ","DOCENTE","PREGRADO DERECHO","OK","A2+",63,"B1","LEVEL UP","NA"]
[7169367,"JUAN CARLOS BERNAL PUERTO","DOCENTE","PREGRADO DERECHO","OK","B1","NP","NP","NA","NA"]
[7169502,"MARTIN HERNAN PEREZ CUERVO","DOCENTE","PREGRADO DERECHO","OK","A2",27,"A2",{"$f":"+IF(F514=\"NP\",\"NA\",IF(F514=H514,\"SAME LEVEL\",0))","v":"SAME LEVEL"},"NA"]
[7169629,"ANDRES JOSE PARDO RODRIGUEZ","DOCENTE","PREGRADO DERECHO","OK","A2",37,"A2","SAME LEVEL","NA"]
[7176111,"GERMAN IGNACIO ZORRO MONROY","DOCENTE","PREGRADO DERECHO","OK","NP","NP","NP","NA","NA"]
[7177571,"EDGAR ANDRES QUIROGA NATALE","DOCENTE","PREGRADO DERECHO","OK","A2",30,"A2","SAME LEVEL","NA"]
[7179428,"JUAN CARLOS SOSA RUIZ","DOCENTE","PREGRADO DERECHO","OK","A2",33,"A2","SAME LEVEL","NA"]
[7182058,"DIEGO FERNANDO RIVERA ACUNA","DOCENTE","PREGRADO DERECHO","OK","NP","NP","NP","NA","NA"]
[12401211,"RODOLFO GUTIERREZ SILVA","DOCENTE","PREGRADO DERECHO","OK","NP","NP","NP","NA","NA"]
[19186997,"RAFAEL ANTONIO PARRA SERNA","DOCENTE","PREGRADO DERECHO","OK","NP","NP","NP","NA","NA"]
[19284760,"GUSTAVO ADOLFO LANZIANO MOLANO","DOCENTE","PREGRADO DERECHO","OK","NP","NP","NP","NA","NA"]
[19471810,"HECTOR FRANCISCO AREVALO FOMEQUE","DOCENTE","PREGRADO DERECHO","OK","A2","NP","NP","NA","NA"]
[23783760,"MADY JULIANA MONTANA RUIZ","DOCENTE","PREGRADO DERECHO","OK","A1",24,"A1",{"$f":"+IF(F524=\"NP\",\"NA\",IF(F524=H524,\"SAME LEVEL\",0))","v":"SAME LEVEL"},"NA"]
[33369483,"SONIA MILENA PARDO MORCOTE","DOCENTE","PREGRADO DERECHO","OK","A1",27,"A2","LEVEL UP","NA"]
[33376443,"LINA JOHANA GONZALEZ BARON","DOCENTE","PREGRADO DERECHO","OK","A2","NP","NP","NA","NA"]
[33377124,"LADY CAROLINA BAYONA ESTUPINAN","DOCENTE","PREGRADO DERECHO","OK","A1",24,"A1",{"$f":"+IF(F527=\"NP\",\"NA\",IF(F527=H527,\"SAME LEVEL\",0))","v":"SAME LEVEL"},"NA"]
[40033698,"DAISY DEL PILAR CADENA MORENO","DOCENTE","PREGRADO DERECHO","OK","A1",19,"A1",{"$f":"+IF(F528=\"NP\",\"NA\",IF(F528=H528,\"SAME LEVEL\",0))","v":"SAME LEVEL"},"NA"]
[40041862,"LUCIA FERNANDA TELLEZ PEREZ","DOCENTE","PREGRADO DERECHO","OK","NP","NP","NP",{"$f":"+IF(F529=\"NP\",\"NA\",IF(F529=H529,\"SAME LEVEL\",0))","v":"NA"},"NA"]
[40043210,"ELIZABETH PATINO ZEA","DOCENTE","PREGRADO DERECHO","OK","A1","NP","NP","NA","NA"]
[40046541,"SANDRA JULIETA FONSECA LOPEZ","DOCENTE","PREGRADO DERECHO","OK","A2","NP","NP","NA","NA"]
[40048328,"DEISY JOANNA FORERO FORERO","DOCENTE","PREGRADO DERECHO","OK","A2",43,"A2",{"$f":"+IF(F532=\"NP\",\"NA\",IF(F532=H532,\"SAME LEVEL\",0))","v":"SAME LEVEL"},"NA"]
[46457199,"DIANA LORENA ESTUPINAN OLIVEROS","PROFESIONAL SOPORTE","PREGRADO DERECHO","OK","NP",24,"A1",{"$f":"+IF(F533=\"NP\",\"NA\",IF(F533=H533,\"SAME LEVEL\",0))","v":"NA"},"NA"]
[51625848,"ROSALBA ALARCON GERENA","DOCENTE","PREGRADO DERECHO","OK","A1",20,"A1",{"$f":"+IF(F534=\"NP\",\"NA\",IF(F534=H534,\"SAME LEVEL\",0))","v":"SAME LEVEL"},"NA"]
[72246118,"MARLON IVAN MALDONADO NARVAEZ","DOCENTE","PREGRADO DERECHO","OK","B1+","NP","NP","NA","Certificado B2 - IELTS 2021"]
[74244588,"DEIBY ALBERTO SAENZ RODRIGUEZ","DOCENTE","PREGRADO DERECHO","OK","A1",30,"A2","LEVEL UP","NA"]
[79120395,"LUIS ERNESTO ARCINIEGAS TRIANA","DOCENTE","PREGRADO DERECHO","OK","NP","NP","NP",{"$f":"+IF(F537=\"NP\",\"NA\",IF(F537=H537,\"SAME LEVEL\",0))","v":"NA"},"NA"]
[79432412,"FRANK WILLIAM PARRA TELLEZ","DOCENTE","PREGRADO DERECHO","OK","NP","NP","NP",{"$f":"+IF(F538=\"NP\",\"NA\",IF(F538=H538,\"SAME LEVEL\",0))","v":"NA"},"NA"]
[79480596,"FLAVIO EFREN GRANADOS MORA","DOCENTE","PREGRADO DERECHO","OK","NP","NP","NP",{"$f":"+IF(F539=\"NP\",\"NA\",IF(F539=H539,\"SAME LEVEL\",0))","v":"NA"},"NA"]
[79641577,"ROBINSON ARI CARDENAS SIERRA","DOCENTE","PREGRADO DERECHO","OK","A1",23,"A1",{"$f":"+IF(F540=\"NP\",\"NA\",IF(F540=H540,\"SAME LEVEL\",0))","v":"SAME LEVEL"},"NA"]
[79796254,"WILLIAN FERNANDO HERNANDEZ BUITRAGO","DOCENTE","PREGRADO DERECHO","OK","A2+",66,"B1","LEVEL UP","NA"]
[79834818,"HUGO FERNANDO GUERRERO SIERRA","DOCENTE","PREGRADO DERECHO","OK","NP","NP","NP",{"$f":"+IF(F542=\"NP\",\"NA\",IF(F542=H542,\"SAME LEVEL\",0))","v":"NA"},"NA"]
[79960032,"MARIO HUMBERTO RODRIGUEZ SEPULVEDA","DOCENTE","PREGRADO DERECHO","OK","A1",14,"A1",{"$f":"+IF(F543=\"NP\",\"NA\",IF(F543=H543,\"SAME LEVEL\",0))","v":"SAME LEVEL"},"NA"]
[80793949,"EDMER LEANDRO LOPEZ PENA","DOCENTE","PREGRADO DERECHO","OK","A2+","NP","NP","NA","NA"]
[80845313,"CAMILO ANDRES RODRIGUEZ LEON","DOCENTE","PREGRADO DERECHO","OK","NP","NP","NP",{"$f":"+IF(F545=\"NP\",\"NA\",IF(F545=H545,\"SAME LEVEL\",0))","v":"NA"},"NA"]
[1002394968,"KAREN TATIANA HERNANDEZ SUAREZ","AUXILIAR","PREGRADO DERECHO","OK","A2",27,"A2",{"$f":"+IF(F546=\"NP\",\"NA\",IF(F546=H546,\"SAME LEVEL\",0))","v":"SAME LEVEL"},"NA"]
[1010043840,"YOHANA MARICELA RODRIGUEZ MORENO","AUXILIAR","PREGRADO DERECHO","OK","NP",33,"A2",{"$f":"+IF(F547=\"NP\",\"NA\",IF(F547=H547,\"SAME LEVEL\",0))","v":"NA"},"NA"]
[1020733548,"MARCELA PALACIO PUERTA","DOCENTE","PREGRADO DERECHO","OK","B2","NP","NP","NA","NA"]
[1049609996,"NELSON EDUARDO SANTOS ESTEPA","DOCENTE","PREGRADO DERECHO","OK","NP",29,"A2",{"$f":"+IF(F549=\"NP\",\"NA\",IF(F549=H549,\"SAME LEVEL\",0))","v":"NA"},"NA"]
[1049615162,"YISSETH XIMENA PEREZ AYALA","PROFESIONAL SOPORTE","PREGRADO DERECHO","OK","A1",24,"A1",{"$f":"+IF(F550=\"NP\",\"NA\",IF(F550=H550,\"SAME LEVEL\",0))","v":"SAME LEVEL"},"NA"]
[1049619591,"NUBIA LORENA DAZA LOPEZ","DECANO (A)","PREGRADO DERECHO","OK","B1",29,"A2","LEVEL DOWN","NA"]
[1049620563,"FERNANDO ALONSO TOVAR URICOECHEA","DOCENTE","PREGRADO DERECHO","OK","B1","NP","NP","NA","NA"]
[1049625709,"IVAN HUMBERTO GALVIS MACIAS","DOCENTE","PREGRADO DERECHO","OK","A2",40,"A2",{"$f":"+IF(F553=\"NP\",\"NA\",IF(F553=H553,\"SAME LEVEL\",0))","v":"SAME LEVEL"},"NA"]
[1049629014,"SERGIO ANDRES LOPEZ ZAMORA","DOCENTE","PREGRADO DERECHO","OK","NP",40,"A2",{"$f":"+IF(F554=\"NP\",\"NA\",IF(F554=H554,\"SAME LEVEL\",0))","v":"NA"},"NA"]
[1049636219,"DANIEL FELIPE GARAVITO RINCON","DOCENTE","PREGRADO DERECHO","OK","A2+",69,"B1","LEVEL UP","NA"]
[1052385384,"JOSE EDUARDO VALDERRAMA VELANDIA","DOCENTE","PREGRADO DERECHO","OK","NP","NP","NP",{"$f":"+IF(F556=\"NP\",\"NA\",IF(F556=H556,\"SAME LEVEL\",0))","v":"NA"},"NA"]
[1054678124,"CAROL JULIANA HERRENO ANGULO","DOCENTE","PREGRADO DERECHO","OK","A2",21,"A1","LEVEL DOWN","NA"]
[1057515000,"CARLOS ANDRES ARANDA CAMACHO","DOCENTE","PREGRADO DERECHO","OK","A2","NP","NP","NA","NA"]
[1057600529,"LAURA LORENA CICUAMIA ZEA","PROFESIONAL SOPORTE","PREGRADO DERECHO","OK","A2",23,"A1","LEVEL DOWN","NA"]
[1069725022,"CESAR FERNANDO HUTCHISON SALAZAR","DOCENTE","PREGRADO DERECHO","OK","NP",34,"A2",{"$f":"+IF(F560=\"NP\",\"NA\",IF(F560=H560,\"SAME LEVEL\",0))","v":"NA"},"NA"]
[7164225,"RAFAEL WILLIAM TORRES MARTINEZ","DOCENTE","PREGRADO DERECHO","OK","A1","NP","NP","NA","NA"]
[91105963,"MANUEL RODRIGUEZ ACEVEDO","DOCENTE","PREGRADO DERECHO","OK","A1",26,"A2","LEVEL UP","NA"]
[24133694,"GLORIA CARMENZA PAEZ PALACIOS","DOCENTE","PREGRADO DERECHO","OK","A1",19,"A1",{"$f":"+IF(F563=\"NP\",\"NA\",IF(F563=H563,\"SAME LEVEL\",0))","v":"SAME LEVEL"},"NA"]
[40020277,"RUTH JACQUELINE BOTIA SACHICA","DOCENTE","PREGRADO DERECHO","OK","A1",27,"A2","LEVEL UP","NA"]
[46670637,"MAGDA YANETH MARTINEZ QUINTERO","DOCENTE","PREGRADO DERECHO","OK","A1","NP","NP","NA","NA"]
[46674075,"SANDRA LILIANA AVELLANEDA HERNANDEZ","DOCENTE","PREGRADO DERECHO","OK","A2",26,"A2",{"$f":"+IF(F566=\"NP\",\"NA\",IF(F566=H566,\"SAME LEVEL\",0))","v":"SAME LEVEL"},"NA"]
[1049617492,"NESTOR HERNANDO MORENO HUERTAS","DOCENTE","PREGRADO DERECHO","OK","NP",34,"A2",{"$f":"+IF(F567=\"NP\",\"NA\",IF(F567=H567,\"SAME LEVEL\",0))","v":"NA"},"NA"]
[1049655752,"SANDRA MILENA CASTIBLANCO MOLANO","PROFESIONAL SOPORTE","PREGRADO DERECHO","OK","NP",26,"A2",{"$f":"+IF(F568=\"NP\",\"NA\",IF(F568=H568,\"SAME LEVEL\",0))","v":"NA"},"NA"]